Workbook

Sheet Reisek.
J1: =IF(J2>K2,"' Datum von ' größer als ' Datum bis ' !",IF(YEAR(J2)<YEAR(Y1),"Datum < "&TEXT(Y1,"JJJJ")&" !",IF(YEAR(J2)>YEAR(Z1),"Datum > "&TEXT(Z1,"JJJJ")&" !",""))) ->  | K1: =IF(YEAR(K2)<YEAR(Y1),"Datum < "&TEXT(X1,"JJJJ")&" !",IF(YEAR(K2)>YEAR(Z1),"Datum > "&TEXT(Z1,"JJJJ")&" !","")) ->  | Y1: 2017-01-01 | Z1: 2020-12-31
A2: Reisekosten-Abrechnung | J2: =Z11 -> 2020-01-01 | K2: =Z15 -> 2020-01-31 | T2: Thomas Mustermann | Z2: Pkw
A3: A | C3: (A = Arbeitnehmer, bei Erstattung durch Arbeitgeber)
C4: (U = Unternehmer und Werbungskosten als Arbeitnehmer) | Y4: A | Z4: Motorr.
A5: Datum | B5: Datum | C5: Uhrzeit | E5: Uhrzeit | G5: Stunden | I5: Geschäftspartner | J5: Ort | K5: Staat | L5: Verpflegungs- mehraufwand | M5: Übernachtung - Pauschale - | O5: Kilometergeld | P5: zusätzl.Personen | Q5: Fahrzeug | R5: km-Satz | S5: Summe | T5: Bewirtungs- | U5: sonstige Kosten | Y5: U | Z5: Krad
C6: von | D6: bis | E6: von | F6: bis | I6: Reisezweck | L6: - Pauschale - | M6: Kürzung Frühstück | T6: kosten 19% | Z6: Moped
L7: € | M7: =L7 -> € | N7: J/N | O7: km | P7: Anzahl | Q7: Typ | R7: =L7 -> € | S7: =L7 -> € | T7: =L7 -> € | U7: =L7 -> € | W7: Kontierung | Z7: Mofa
Z8: Fahrrad
B10: =IF(OR(A10="",A10=3112),J2-1,DATE(Jahr,RIGHT(A10,2),LEFT(A10,LEN(A10)-2))) -> 2019-12-31 | E10: =IF(C10="",F8,IF(LEN(C10)=1,"00:0"&C10,IF(LEN(C10)=2,"00:"&C10,IF(LEN(C10)=3,"0"&LEFT(C10,1)&":"&RIGHT(C10,2),IF(LEN(C10)=4,LEFT(C10,2)&":"&RIGHT(C10,2),0))))) -> 00:00:00 | F10: =IF(LEN(D10)=1,"00:0"&D10,IF(LEN(D10)=2,"00:"&D10,IF(LEN(D10)=3,"0"&LEFT(D10,1)&":"&RIGHT(D10,2),IF(LEN(D10)=4,LEFT(D10,2)&":"&RIGHT(D10,2),0)))) -> 00:00:00 | G10: =IF(OR(C10="",D10=""),0,IF(OR(B10<=0,C10=""),0,IF(OR(RIGHT(C10,2)*1>59,RIGHT(D10,2)*1>59),"X",F10-E10))) -> 0 | K10: =IF(ISERROR(VLOOKUP(J10,Städte!$A$2:$B$1030,2,0))," ",VLOOKUP(J10,Städte!$A$2:$B$1030,2,0)) ->  | L10: =IF(OR(D10>2400,D11>2400,G10="X",G11="X"),"Uhrzeit prüfen!",IF(OR(J11<>"",L11<>""),"",IF(AND(G10+G11>8/24,G10+G11<24/24),VLOOKUP(K10,Staaten!$A$7:$D$336,3,0),IF(OR(AND(B10-B8=1,D8=2400,ISNUMBER(C10),C10=0,G10<1),AND(B12-B10=1,C12=0,D10=2400,G10<1)),VLOOKUP(K10,Staaten!$A$7:$D$336,4,0),IF(G10+G11>=24/24,VLOOKUP(K10,Staaten!$A$7:$B$336,2,0),""))))) ->  | M10: =IF(AND($A$3="A",B10+100-B11<>0,N10="N"),VLOOKUP(K10,Staaten!$A$7:$E$366,5,FALSE),IF(AND($A$3="U",B10+100-B11<>0,N10="N"),VLOOKUP(K10,Staaten!$A$4:$I$366,9,FALSE)," ")) ->  | P10: 1 | R10: =IF(Q10="","",VLOOKUP(Q10,Fahrzeug!$A$2:$B$20,2,0)) ->  | S10: =IF(Q10=""," ",O10*R10) ->  | U10: =IF(RIGHT(W11,17)="Kürzung Pauschale",-MIN(VLOOKUP(K10,Staaten!$A$7:$B$336,2,0)*LEFT(W11,4),L10),"") ->  | W10: =IF(ISERROR(VLOOKUP(W11,Kontenplan!$A$4:$B$110,2,0)),"",IF($A$3="A",VLOOKUP(W11,Kontenplan!$A$4:$B$110,2,0),IF(ISERROR(VLOOKUP(W11,Kontenplan!$A$4:$C$110,3,0))," ",IF($A$3="U",VLOOKUP(W11,Kontenplan!$A$4:$C$110,3,0)," ")))) -> 
B11: =IF(A11="",B10,DATE(Jahr,RIGHT(A11,2),LEFT(A11,LEN(A11)-2))) -> 2019-12-31 | E11: =IF(C11="",F10,IF(LEN(C11)=1,"00:0"&C11,IF(LEN(C11)=2,"00:"&C11,IF(LEN(C11)=3,"0"&LEFT(C11,1)&":"&RIGHT(C11,2),IF(LEN(C11)=4,LEFT(C11,2)&":"&RIGHT(C11,2),0))))) -> 00:00:00 | F11: =IF(LEN(D11)=1,"00:0"&D11,IF(LEN(D11)=2,"00:"&D11,IF(LEN(D11)=3,"0"&LEFT(D11,1)&":"&RIGHT(D11,2),IF(LEN(D11)=4,LEFT(D11,2)&":"&RIGHT(D11,2),0)))) -> 00:00:00 | G11: =IF(OR(C11="",D11=""),0,IF(OR(B11<=0,C11=""),0,IF(OR(RIGHT(C11,2)*1>59,RIGHT(D11,2)*1>59),"X",F11-E11))) -> 0 | J11: =IF(OR(AND(C10="",D10<>""),AND(C11="",D11<>""),D10>2400,D11>2400,G10="X",G11="X"),"Uhrzeit prüfen!",IF(OR(AND(B9=B10,E10<F9),AND(A10<>"",B8=B10,E10<F8),AND(B10=B11,E11<F10)),"Datum + Uhrzeit prüfen !",IF(AND(E11+1-F10<>0,B10+1-B11=0),"Datum + Uhrzeit prüfen !",IF(AND(G10+G11>0,I10<=0),"Geschäftspartner ?",IF(AND(G10+G11>0,I11<=0),"Reisezweck fehlt!",IF(AND(G10+G11>0,J10<=0),"Ort fehlt!",IF(AND(G10+G11>0,J10=" "),"Ort fehlt!",""))))))) ->  | K11: =VLOOKUP(K10,Staaten!$A$7:$G$347,7,0) ->  | L11: =IF(AND(D10>0,B10<=0),"Datum fehlt !",IF(AND(D11>0,B11<=0),"Datum fehlt !",IF(NOT(OR(B10=B11,B10+1=B11,B11<=0,)),"Datum prüfen !",IF(OR(AND(B9=B10,E10<F9),AND(B10=B11,E11<F10)),"Datum + Uhrzeit prüfen !",IF(AND(E11+1-F10<>0,B10+1=B11),"Datum + Uhrzeit prüfen !",IF(OR(AND(B10+1=B11,C10<1600),AND(B10+1=B11,D11>800)),"Pauschale prüfen !","")))))) ->  | M11: =IF(N10="J",VLOOKUP(K10,Staaten!$A$7:$F$366,6,FALSE)," ") ->  | Z11: =DATE(Z14,Z13,Z12) -> 2020-01-01 | AA11: =Z11-1 -> 2019-12-31
B12: =IF(A12="",B10,DATE(Jahr,RIGHT(A12,2),LEFT(A12,LEN(A12)-2))) -> 2019-12-31 | E12: =IF(C12="",F11,IF(LEN(C12)=1,"00:0"&C12,IF(LEN(C12)=2,"00:"&C12,IF(LEN(C12)=3,"0"&LEFT(C12,1)&":"&RIGHT(C12,2),IF(LEN(C12)=4,LEFT(C12,2)&":"&RIGHT(C12,2),0))))) -> 00:00:00 | F12: =IF(LEN(D12)=1,"00:0"&D12,IF(LEN(D12)=2,"00:"&D12,IF(LEN(D12)=3,"0"&LEFT(D12,1)&":"&RIGHT(D12,2),IF(LEN(D12)=4,LEFT(D12,2)&":"&RIGHT(D12,2),0)))) -> 00:00:00 | G12: =IF(OR(C12="",D12=""),0,IF(OR(B12<=0,C12=""),0,IF(OR(RIGHT(C12,2)*1>59,RIGHT(D12,2)*1>59),"X",F12-E12))) -> 0 | K12: =IF(ISERROR(VLOOKUP(J12,Städte!$A$2:$B$1030,2,0))," ",VLOOKUP(J12,Städte!$A$2:$B$1030,2,0)) ->  | L12: =IF(OR(D12>2400,D13>2400,G12="X",G13="X"),"Uhrzeit prüfen!",IF(OR(J13<>"",L13<>""),"",IF(AND(G12+G13>8/24,G12+G13<24/24),VLOOKUP(K12,Staaten!$A$7:$D$336,3,0),IF(OR(AND(B12-B10=1,D10=2400,ISNUMBER(C12),C12=0,G12<1),AND(B14-B12=1,C14=0,D12=2400,G12<1)),VLOOKUP(K12,Staaten!$A$7:$D$336,4,0),IF(G12+G13>=24/24,VLOOKUP(K12,Staaten!$A$7:$B$336,2,0),""))))) ->  | M12: =IF(AND($A$3="A",B12+100-B13<>0,N12="N"),VLOOKUP(K12,Staaten!$A$7:$E$366,5,FALSE),IF(AND($A$3="U",B12+100-B13<>0,N12="N"),VLOOKUP(K12,Staaten!$A$4:$I$366,9,FALSE)," ")) ->  | R12: =IF(Q12="","",VLOOKUP(Q12,Fahrzeug!$A$2:$B$20,2,0)) ->  | S12: =IF(Q12=""," ",O12*R12) ->  | U12: =IF(RIGHT(W13,17)="Kürzung Pauschale",-MIN(VLOOKUP(K12,Staaten!$A$7:$B$336,2,0)*LEFT(W13,4),L12),"") ->  | W12: =IF(ISERROR(VLOOKUP(W13,Kontenplan!$A$4:$B$110,2,0)),"",IF($A$3="A",VLOOKUP(W13,Kontenplan!$A$4:$B$110,2,0),IF(ISERROR(VLOOKUP(W13,Kontenplan!$A$4:$C$110,3,0))," ",IF($A$3="U",VLOOKUP(W13,Kontenplan!$A$4:$C$110,3,0)," ")))) ->  | Z12: 1
B13: =IF(A13="",B12,DATE(Jahr,RIGHT(A13,2),LEFT(A13,LEN(A13)-2))) -> 2019-12-31 | E13: 00:00:00 | F13: 00:00:00 | G13: 0 | K13: =VLOOKUP(K12,Staaten!$A$7:$G$347,7,0) ->  | L13: =IF(AND(D12>0,B12<=0),"Datum fehlt !",IF(AND(D13>0,B13<=0),"Datum fehlt !",IF(NOT(OR(B12=B13,B12+1=B13,B13<=0,)),"Datum prüfen !",IF(OR(AND(B11=B12,E12<F11),AND(B12=B13,E13<F12)),"Datum + Uhrzeit prüfen !",IF(AND(E13+1-F12<>0,B12+1=B13),"Datum + Uhrzeit prüfen !",IF(OR(AND(B12+1=B13,C12<1600),AND(B12+1=B13,D13>800)),"Pauschale prüfen !","")))))) ->  | M13: =IF(N12="J",VLOOKUP(K12,Staaten!$A$7:$F$366,6,FALSE)," ") ->  | Z13: 1
B14: =IF(A14="",B12,DATE(Jahr,RIGHT(A14,2),LEFT(A14,LEN(A14)-2))) -> 2019-12-31 | E14: 00:00:00 | F14: 00:00:00 | G14: 0 | K14: =IF(ISERROR(VLOOKUP(J14,Städte!$A$2:$B$1030,2,0))," ",VLOOKUP(J14,Städte!$A$2:$B$1030,2,0)) ->  | L14: =IF(OR(D14>2400,D15>2400,G14="X",G15="X"),"Uhrzeit prüfen!",IF(OR(J15<>"",L15<>""),"",IF(AND(G14+G15>8/24,G14+G15<24/24),VLOOKUP(K14,Staaten!$A$7:$D$336,3,0),IF(OR(AND(B14-B12=1,D12=2400,ISNUMBER(C14),C14=0,G14<1),AND(B16-B14=1,C16=0,D14=2400,G14<1)),VLOOKUP(K14,Staaten!$A$7:$D$336,4,0),IF(G14+G15>=24/24,VLOOKUP(K14,Staaten!$A$7:$B$336,2,0),""))))) ->  | M14: =IF(AND($A$3="A",B14+100-B15<>0,N14="N"),VLOOKUP(K14,Staaten!$A$7:$E$366,5,FALSE),IF(AND($A$3="U",B14+100-B15<>0,N14="N"),VLOOKUP(K14,Staaten!$A$4:$I$366,9,FALSE)," ")) ->  | R14: =IF(Q14="","",VLOOKUP(Q14,Fahrzeug!$A$2:$B$20,2,0)) ->  | S14: =IF(Q14=""," ",O14*R14) ->  | U14: =IF(RIGHT(W15,17)="Kürzung Pauschale",-MIN(VLOOKUP(K14,Staaten!$A$7:$B$336,2,0)*LEFT(W15,4),L14),"") ->  | W14: =IF(ISERROR(VLOOKUP(W15,Kontenplan!$A$4:$B$110,2,0)),"",IF($A$3="A",VLOOKUP(W15,Kontenplan!$A$4:$B$110,2,0),IF(ISERROR(VLOOKUP(W15,Kontenplan!$A$4:$C$110,3,0))," ",IF($A$3="U",VLOOKUP(W15,Kontenplan!$A$4:$C$110,3,0)," ")))) ->  | Z14: 2020
B15: =IF(A15="",B14,DATE(Jahr,RIGHT(A15,2),LEFT(A15,LEN(A15)-2))) -> 2019-12-31 | E15: 00:00:00 | F15: 00:00:00 | G15: 0 | K15: =VLOOKUP(K14,Staaten!$A$7:$G$347,7,0) ->  | L15: =IF(AND(D14>0,B14<=0),"Datum fehlt !",IF(AND(D15>0,B15<=0),"Datum fehlt !",IF(NOT(OR(B14=B15,B14+1=B15,B15<=0,)),"Datum prüfen !",IF(OR(AND(B13=B14,E14<F13),AND(B14=B15,E15<F14)),"Datum + Uhrzeit prüfen !",IF(AND(E15+1-F14<>0,B14+1=B15),"Datum + Uhrzeit prüfen !",IF(OR(AND(B14+1=B15,C14<1600),AND(B14+1=B15,D15>800)),"Pauschale prüfen !","")))))) ->  | M15: =IF(N14="J",VLOOKUP(K14,Staaten!$A$7:$F$366,6,FALSE)," ") ->  | Z15: =DATE(Z18,Z17,Z16) -> 2020-01-31 | AA15: =Z15+1 -> 2020-02-01
B16: =IF(A16="",B14,DATE(Jahr,RIGHT(A16,2),LEFT(A16,LEN(A16)-2))) -> 2019-12-31 | E16: 00:00:00 | F16: 00:00:00 | G16: 0 | K16: =IF(ISERROR(VLOOKUP(J16,Städte!$A$2:$B$1030,2,0))," ",VLOOKUP(J16,Städte!$A$2:$B$1030,2,0)) ->  | L16: =IF(OR(D16>2400,D17>2400,G16="X",G17="X"),"Uhrzeit prüfen!",IF(OR(J17<>"",L17<>""),"",IF(AND(G16+G17>8/24,G16+G17<24/24),VLOOKUP(K16,Staaten!$A$7:$D$336,3,0),IF(OR(AND(B16-B14=1,D14=2400,ISNUMBER(C16),C16=0,G16<1),AND(B18-B16=1,C18=0,D16=2400,G16<1)),VLOOKUP(K16,Staaten!$A$7:$D$336,4,0),IF(G16+G17>=24/24,VLOOKUP(K16,Staaten!$A$7:$B$336,2,0),""))))) ->  | M16: =IF(AND($A$3="A",B16+100-B17<>0,N16="N"),VLOOKUP(K16,Staaten!$A$7:$E$366,5,FALSE),IF(AND($A$3="U",B16+100-B17<>0,N16="N"),VLOOKUP(K16,Staaten!$A$4:$I$366,9,FALSE)," ")) ->  | R16: =IF(Q16="","",VLOOKUP(Q16,Fahrzeug!$A$2:$B$20,2,0)) ->  | S16: =IF(Q16=""," ",O16*R16) ->  | U16: =IF(RIGHT(W17,17)="Kürzung Pauschale",-MIN(VLOOKUP(K16,Staaten!$A$7:$B$336,2,0)*LEFT(W17,4),L16),"") ->  | W16: =IF(ISERROR(VLOOKUP(W17,Kontenplan!$A$4:$B$110,2,0)),"",IF($A$3="A",VLOOKUP(W17,Kontenplan!$A$4:$B$110,2,0),IF(ISERROR(VLOOKUP(W17,Kontenplan!$A$4:$C$110,3,0))," ",IF($A$3="U",VLOOKUP(W17,Kontenplan!$A$4:$C$110,3,0)," ")))) ->  | Z16: =SUM(AA16:AC16) -> 0 | AA16: 31 | AB16: =Z12-1 -> 0 | AC16: =IF(Z13=12,Z12*-1+1,Z12-AB16-32) -> -31
B17: =IF(A17="",B16,DATE(Jahr,RIGHT(A17,2),LEFT(A17,LEN(A17)-2))) -> 2019-12-31 | E17: 00:00:00 | F17: 00:00:00 | G17: 0 | K17: =VLOOKUP(K16,Staaten!$A$7:$G$347,7,0) ->  | L17: =IF(AND(D16>0,B16<=0),"Datum fehlt !",IF(AND(D17>0,B17<=0),"Datum fehlt !",IF(NOT(OR(B16=B17,B16+1=B17,B17<=0,)),"Datum prüfen !",IF(OR(AND(B15=B16,E16<F15),AND(B16=B17,E17<F16)),"Datum + Uhrzeit prüfen !",IF(AND(E17+1-F16<>0,B16+1=B17),"Datum + Uhrzeit prüfen !",IF(OR(AND(B16+1=B17,C16<1600),AND(B16+1=B17,D17>800)),"Pauschale prüfen !","")))))) ->  | M17: =IF(N16="J",VLOOKUP(K16,Staaten!$A$7:$F$366,6,FALSE)," ") ->  | Z17: =IF(AND(Z16>0,SUM(AA17:AB17)>12),12,IF(SUM(AA17:AB17)>13,13,SUM(AA17:AB17))) -> 2 | AA17: 1 | AB17: =Z13 -> 1
B18: =IF(A18="",B16,DATE(Jahr,RIGHT(A18,2),LEFT(A18,LEN(A18)-2))) -> 2019-12-31 | E18: 00:00:00 | F18: 00:00:00 | G18: 0 | K18: =IF(ISERROR(VLOOKUP(J18,Städte!$A$2:$B$1030,2,0))," ",VLOOKUP(J18,Städte!$A$2:$B$1030,2,0)) ->  | L18: =IF(OR(D18>2400,D19>2400,G18="X",G19="X"),"Uhrzeit prüfen!",IF(OR(J19<>"",L19<>""),"",IF(AND(G18+G19>8/24,G18+G19<24/24),VLOOKUP(K18,Staaten!$A$7:$D$336,3,0),IF(OR(AND(B18-B16=1,D16=2400,ISNUMBER(C18),C18=0,G18<1),AND(B20-B18=1,C20=0,D18=2400,G18<1)),VLOOKUP(K18,Staaten!$A$7:$D$336,4,0),IF(G18+G19>=24/24,VLOOKUP(K18,Staaten!$A$7:$B$336,2,0),""))))) ->  | M18: =IF(AND($A$3="A",B18+100-B19<>0,N18="N"),VLOOKUP(K18,Staaten!$A$7:$E$366,5,FALSE),IF(AND($A$3="U",B18+100-B19<>0,N18="N"),VLOOKUP(K18,Staaten!$A$4:$I$366,9,FALSE)," ")) ->  | R18: =IF(Q18="","",VLOOKUP(Q18,Fahrzeug!$A$2:$B$20,2,0)) ->  | S18: =IF(Q18=""," ",O18*R18) ->  | U18: =IF(RIGHT(W19,17)="Kürzung Pauschale",-MIN(VLOOKUP(K18,Staaten!$A$7:$B$336,2,0)*LEFT(W19,4),L18),"") ->  | W18: =IF(ISERROR(VLOOKUP(W19,Kontenplan!$A$4:$B$110,2,0)),"",IF($A$3="A",VLOOKUP(W19,Kontenplan!$A$4:$B$110,2,0),IF(ISERROR(VLOOKUP(W19,Kontenplan!$A$4:$C$110,3,0))," ",IF($A$3="U",VLOOKUP(W19,Kontenplan!$A$4:$C$110,3,0)," ")))) ->  | Z18: =Z14 -> 2020
B19: =IF(A19="",B18,DATE(Jahr,RIGHT(A19,2),LEFT(A19,LEN(A19)-2))) -> 2019-12-31 | E19: 00:00:00 | F19: 00:00:00 | G19: 0 | K19: =VLOOKUP(K18,Staaten!$A$7:$G$347,7,0) ->  | L19: =IF(AND(D18>0,B18<=0),"Datum fehlt !",IF(AND(D19>0,B19<=0),"Datum fehlt !",IF(NOT(OR(B18=B19,B18+1=B19,B19<=0,)),"Datum prüfen !",IF(OR(AND(B17=B18,E18<F17),AND(B18=B19,E19<F18)),"Datum + Uhrzeit prüfen !",IF(AND(E19+1-F18<>0,B18+1=B19),"Datum + Uhrzeit prüfen !",IF(OR(AND(B18+1=B19,C18<1600),AND(B18+1=B19,D19>800)),"Pauschale prüfen !","")))))) ->  | M19: =IF(N18="J",VLOOKUP(K18,Staaten!$A$7:$F$366,6,FALSE)," ") -> 
B20: =IF(A20="",B18,DATE(Jahr,RIGHT(A20,2),LEFT(A20,LEN(A20)-2))) -> 2019-12-31 | E20: 00:00:00 | F20: 00:00:00 | G20: 0 | K20: =IF(ISERROR(VLOOKUP(J20,Städte!$A$2:$B$1030,2,0))," ",VLOOKUP(J20,Städte!$A$2:$B$1030,2,0)) ->  | L20: =IF(OR(D20>2400,D21>2400,G20="X",G21="X"),"Uhrzeit prüfen!",IF(OR(J21<>"",L21<>""),"",IF(AND(G20+G21>8/24,G20+G21<24/24),VLOOKUP(K20,Staaten!$A$7:$D$336,3,0),IF(OR(AND(B20-B18=1,D18=2400,ISNUMBER(C20),C20=0,G20<1),AND(B22-B20=1,C22=0,D20=2400,G20<1)),VLOOKUP(K20,Staaten!$A$7:$D$336,4,0),IF(G20+G21>=24/24,VLOOKUP(K20,Staaten!$A$7:$B$336,2,0),""))))) ->  | M20: =IF(AND($A$3="A",B20+100-B21<>0,N20="N"),VLOOKUP(K20,Staaten!$A$7:$E$366,5,FALSE),IF(AND($A$3="U",B20+100-B21<>0,N20="N"),VLOOKUP(K20,Staaten!$A$4:$I$366,9,FALSE)," ")) ->  | R20: =IF(Q20="","",VLOOKUP(Q20,Fahrzeug!$A$2:$B$20,2,0)) ->  | S20: =IF(Q20=""," ",O20*R20) ->  | U20: =IF(RIGHT(W21,17)="Kürzung Pauschale",-MIN(VLOOKUP(K20,Staaten!$A$7:$B$336,2,0)*LEFT(W21,4),L20),"") ->  | W20: =IF(ISERROR(VLOOKUP(W21,Kontenplan!$A$4:$B$110,2,0)),"",IF($A$3="A",VLOOKUP(W21,Kontenplan!$A$4:$B$110,2,0),IF(ISERROR(VLOOKUP(W21,Kontenplan!$A$4:$C$110,3,0))," ",IF($A$3="U",VLOOKUP(W21,Kontenplan!$A$4:$C$110,3,0)," ")))) -> 
B21: =IF(A21="",B20,DATE(Jahr,RIGHT(A21,2),LEFT(A21,LEN(A21)-2))) -> 2019-12-31 | E21: 00:00:00 | F21: 00:00:00 | G21: 0 | K21: =VLOOKUP(K20,Staaten!$A$7:$G$347,7,0) ->  | L21: =IF(AND(D20>0,B20<=0),"Datum fehlt !",IF(AND(D21>0,B21<=0),"Datum fehlt !",IF(NOT(OR(B20=B21,B20+1=B21,B21<=0,)),"Datum prüfen !",IF(OR(AND(B19=B20,E20<F19),AND(B20=B21,E21<F20)),"Datum + Uhrzeit prüfen !",IF(AND(E21+1-F20<>0,B20+1=B21),"Datum + Uhrzeit prüfen !",IF(OR(AND(B20+1=B21,C20<1600),AND(B20+1=B21,D21>800)),"Pauschale prüfen !","")))))) ->  | M21: =IF(N20="J",VLOOKUP(K20,Staaten!$A$7:$F$366,6,FALSE)," ") -> 
B22: =IF(A22="",B20,DATE(Jahr,RIGHT(A22,2),LEFT(A22,LEN(A22)-2))) -> 2019-12-31 | E22: 00:00:00 | F22: 00:00:00 | G22: 0 | K22: =IF(ISERROR(VLOOKUP(J22,Städte!$A$2:$B$1030,2,0))," ",VLOOKUP(J22,Städte!$A$2:$B$1030,2,0)) ->  | L22: =IF(OR(D22>2400,D23>2400,G22="X",G23="X"),"Uhrzeit prüfen!",IF(OR(J23<>"",L23<>""),"",IF(AND(G22+G23>8/24,G22+G23<24/24),VLOOKUP(K22,Staaten!$A$7:$D$336,3,0),IF(OR(AND(B22-B20=1,D20=2400,ISNUMBER(C22),C22=0,G22<1),AND(B24-B22=1,C24=0,D22=2400,G22<1)),VLOOKUP(K22,Staaten!$A$7:$D$336,4,0),IF(G22+G23>=24/24,VLOOKUP(K22,Staaten!$A$7:$B$336,2,0),""))))) ->  | M22: =IF(AND($A$3="A",B22+100-B23<>0,N22="N"),VLOOKUP(K22,Staaten!$A$7:$E$366,5,FALSE),IF(AND($A$3="U",B22+100-B23<>0,N22="N"),VLOOKUP(K22,Staaten!$A$4:$I$366,9,FALSE)," ")) ->  | R22: =IF(Q22="","",VLOOKUP(Q22,Fahrzeug!$A$2:$B$20,2,0)) ->  | S22: =IF(Q22=""," ",O22*R22) ->  | U22: =IF(RIGHT(W23,17)="Kürzung Pauschale",-MIN(VLOOKUP(K22,Staaten!$A$7:$B$336,2,0)*LEFT(W23,4),L22),"") ->  | W22: =IF(ISERROR(VLOOKUP(W23,Kontenplan!$A$4:$B$110,2,0)),"",IF($A$3="A",VLOOKUP(W23,Kontenplan!$A$4:$B$110,2,0),IF(ISERROR(VLOOKUP(W23,Kontenplan!$A$4:$C$110,3,0))," ",IF($A$3="U",VLOOKUP(W23,Kontenplan!$A$4:$C$110,3,0)," ")))) -> 
B23: =IF(A23="",B22,DATE(Jahr,RIGHT(A23,2),LEFT(A23,LEN(A23)-2))) -> 2019-12-31 | E23: 00:00:00 | F23: 00:00:00 | G23: 0 | K23: =VLOOKUP(K22,Staaten!$A$7:$G$347,7,0) ->  | L23: =IF(AND(D22>0,B22<=0),"Datum fehlt !",IF(AND(D23>0,B23<=0),"Datum fehlt !",IF(NOT(OR(B22=B23,B22+1=B23,B23<=0,)),"Datum prüfen !",IF(OR(AND(B21=B22,E22<F21),AND(B22=B23,E23<F22)),"Datum + Uhrzeit prüfen !",IF(AND(E23+1-F22<>0,B22+1=B23),"Datum + Uhrzeit prüfen !",IF(OR(AND(B22+1=B23,C22<1600),AND(B22+1=B23,D23>800)),"Pauschale prüfen !","")))))) ->  | M23: =IF(N22="J",VLOOKUP(K22,Staaten!$A$7:$F$366,6,FALSE)," ") -> 
B24: =IF(A24="",B22,DATE(Jahr,RIGHT(A24,2),LEFT(A24,LEN(A24)-2))) -> 2019-12-31 | E24: 00:00:00 | F24: 00:00:00 | G24: 0 | K24: =IF(ISERROR(VLOOKUP(J24,Städte!$A$2:$B$1030,2,0))," ",VLOOKUP(J24,Städte!$A$2:$B$1030,2,0)) ->  | L24: =IF(OR(D24>2400,D25>2400,G24="X",G25="X"),"Uhrzeit prüfen!",IF(OR(J25<>"",L25<>""),"",IF(AND(G24+G25>8/24,G24+G25<24/24),VLOOKUP(K24,Staaten!$A$7:$D$336,3,0),IF(OR(AND(B24-B22=1,D22=2400,ISNUMBER(C24),C24=0,G24<1),AND(B26-B24=1,C26=0,D24=2400,G24<1)),VLOOKUP(K24,Staaten!$A$7:$D$336,4,0),IF(G24+G25>=24/24,VLOOKUP(K24,Staaten!$A$7:$B$336,2,0),""))))) ->  | M24: =IF(AND($A$3="A",B24+100-B25<>0,N24="N"),VLOOKUP(K24,Staaten!$A$7:$E$366,5,FALSE),IF(AND($A$3="U",B24+100-B25<>0,N24="N"),VLOOKUP(K24,Staaten!$A$4:$I$366,9,FALSE)," ")) ->  | R24: =IF(Q24="","",VLOOKUP(Q24,Fahrzeug!$A$2:$B$20,2,0)) ->  | S24: =IF(Q24=""," ",O24*R24) ->  | U24: =IF(RIGHT(W25,17)="Kürzung Pauschale",-MIN(VLOOKUP(K24,Staaten!$A$7:$B$336,2,0)*LEFT(W25,4),L24),"") ->  | W24: =IF(ISERROR(VLOOKUP(W25,Kontenplan!$A$4:$B$110,2,0)),"",IF($A$3="A",VLOOKUP(W25,Kontenplan!$A$4:$B$110,2,0),IF(ISERROR(VLOOKUP(W25,Kontenplan!$A$4:$C$110,3,0))," ",IF($A$3="U",VLOOKUP(W25,Kontenplan!$A$4:$C$110,3,0)," ")))) -> 
B25: =IF(A25="",B24,DATE(Jahr,RIGHT(A25,2),LEFT(A25,LEN(A25)-2))) -> 2019-12-31 | E25: 00:00:00 | F25: 00:00:00 | G25: 0 | K25: =VLOOKUP(K24,Staaten!$A$7:$G$347,7,0) ->  | L25: =IF(AND(D24>0,B24<=0),"Datum fehlt !",IF(AND(D25>0,B25<=0),"Datum fehlt !",IF(NOT(OR(B24=B25,B24+1=B25,B25<=0,)),"Datum prüfen !",IF(OR(AND(B23=B24,E24<F23),AND(B24=B25,E25<F24)),"Datum + Uhrzeit prüfen !",IF(AND(E25+1-F24<>0,B24+1=B25),"Datum + Uhrzeit prüfen !",IF(OR(AND(B24+1=B25,C24<1600),AND(B24+1=B25,D25>800)),"Pauschale prüfen !","")))))) ->  | M25: =IF(N24="J",VLOOKUP(K24,Staaten!$A$7:$F$366,6,FALSE)," ") -> 
B26: =IF(A26="",B24,DATE(Jahr,RIGHT(A26,2),LEFT(A26,LEN(A26)-2))) -> 2019-12-31 | E26: 00:00:00 | F26: 00:00:00 | G26: 0 | K26: =IF(ISERROR(VLOOKUP(J26,Städte!$A$2:$B$1030,2,0))," ",VLOOKUP(J26,Städte!$A$2:$B$1030,2,0)) ->  | L26: =IF(OR(D26>2400,D27>2400,G26="X",G27="X"),"Uhrzeit prüfen!",IF(OR(J27<>"",L27<>""),"",IF(AND(G26+G27>8/24,G26+G27<24/24),VLOOKUP(K26,Staaten!$A$7:$D$336,3,0),IF(OR(AND(B26-B24=1,D24=2400,ISNUMBER(C26),C26=0,G26<1),AND(B28-B26=1,C28=0,D26=2400,G26<1)),VLOOKUP(K26,Staaten!$A$7:$D$336,4,0),IF(G26+G27>=24/24,VLOOKUP(K26,Staaten!$A$7:$B$336,2,0),""))))) ->  | M26: =IF(AND($A$3="A",B26+100-B27<>0,N26="N"),VLOOKUP(K26,Staaten!$A$7:$E$366,5,FALSE),IF(AND($A$3="U",B26+100-B27<>0,N26="N"),VLOOKUP(K26,Staaten!$A$4:$I$366,9,FALSE)," ")) ->  | R26: =IF(Q26="","",VLOOKUP(Q26,Fahrzeug!$A$2:$B$20,2,0)) ->  | S26: =IF(Q26=""," ",O26*R26) ->  | U26: =IF(RIGHT(W27,17)="Kürzung Pauschale",-MIN(VLOOKUP(K26,Staaten!$A$7:$B$336,2,0)*LEFT(W27,4),L26),"") ->  | W26: =IF(ISERROR(VLOOKUP(W27,Kontenplan!$A$4:$B$110,2,0)),"",IF($A$3="A",VLOOKUP(W27,Kontenplan!$A$4:$B$110,2,0),IF(ISERROR(VLOOKUP(W27,Kontenplan!$A$4:$C$110,3,0))," ",IF($A$3="U",VLOOKUP(W27,Kontenplan!$A$4:$C$110,3,0)," ")))) -> 
B27: =IF(A27="",B26,DATE(Jahr,RIGHT(A27,2),LEFT(A27,LEN(A27)-2))) -> 2019-12-31 | E27: 00:00:00 | F27: 00:00:00 | G27: 0 | K27: =VLOOKUP(K26,Staaten!$A$7:$G$347,7,0) ->  | L27: =IF(AND(D26>0,B26<=0),"Datum fehlt !",IF(AND(D27>0,B27<=0),"Datum fehlt !",IF(NOT(OR(B26=B27,B26+1=B27,B27<=0,)),"Datum prüfen !",IF(OR(AND(B25=B26,E26<F25),AND(B26=B27,E27<F26)),"Datum + Uhrzeit prüfen !",IF(AND(E27+1-F26<>0,B26+1=B27),"Datum + Uhrzeit prüfen !",IF(OR(AND(B26+1=B27,C26<1600),AND(B26+1=B27,D27>800)),"Pauschale prüfen !","")))))) ->  | M27: =IF(N26="J",VLOOKUP(K26,Staaten!$A$7:$F$366,6,FALSE)," ") -> 
B28: =IF(A28="",B26,DATE(Jahr,RIGHT(A28,2),LEFT(A28,LEN(A28)-2))) -> 2019-12-31 | E28: 00:00:00 | F28: 00:00:00 | G28: 0 | K28: =IF(ISERROR(VLOOKUP(J28,Städte!$A$2:$B$1030,2,0))," ",VLOOKUP(J28,Städte!$A$2:$B$1030,2,0)) ->  | L28: =IF(OR(D28>2400,D29>2400,G28="X",G29="X"),"Uhrzeit prüfen!",IF(OR(J29<>"",L29<>""),"",IF(AND(G28+G29>8/24,G28+G29<24/24),VLOOKUP(K28,Staaten!$A$7:$D$336,3,0),IF(OR(AND(B28-B26=1,D26=2400,ISNUMBER(C28),C28=0,G28<1),AND(B30-B28=1,C30=0,D28=2400,G28<1)),VLOOKUP(K28,Staaten!$A$7:$D$336,4,0),IF(G28+G29>=24/24,VLOOKUP(K28,Staaten!$A$7:$B$336,2,0),""))))) ->  | M28: =IF(AND($A$3="A",B28+100-B29<>0,N28="N"),VLOOKUP(K28,Staaten!$A$7:$E$366,5,FALSE),IF(AND($A$3="U",B28+100-B29<>0,N28="N"),VLOOKUP(K28,Staaten!$A$4:$I$366,9,FALSE)," ")) ->  | R28: =IF(Q28="","",VLOOKUP(Q28,Fahrzeug!$A$2:$B$20,2,0)) ->  | S28: =IF(Q28=""," ",O28*R28) ->  | U28: =IF(RIGHT(W29,17)="Kürzung Pauschale",-MIN(VLOOKUP(K28,Staaten!$A$7:$B$336,2,0)*LEFT(W29,4),L28),"") ->  | W28: =IF(ISERROR(VLOOKUP(W29,Kontenplan!$A$4:$B$110,2,0)),"",IF($A$3="A",VLOOKUP(W29,Kontenplan!$A$4:$B$110,2,0),IF(ISERROR(VLOOKUP(W29,Kontenplan!$A$4:$C$110,3,0))," ",IF($A$3="U",VLOOKUP(W29,Kontenplan!$A$4:$C$110,3,0)," ")))) -> 
B29: =IF(A29="",B28,DATE(Jahr,RIGHT(A29,2),LEFT(A29,LEN(A29)-2))) -> 2019-12-31 | E29: 00:00:00 | F29: 00:00:00 | G29: 0 | K29: =VLOOKUP(K28,Staaten!$A$7:$G$347,7,0) ->  | L29: =IF(AND(D28>0,B28<=0),"Datum fehlt !",IF(AND(D29>0,B29<=0),"Datum fehlt !",IF(NOT(OR(B28=B29,B28+1=B29,B29<=0,)),"Datum prüfen !",IF(OR(AND(B27=B28,E28<F27),AND(B28=B29,E29<F28)),"Datum + Uhrzeit prüfen !",IF(AND(E29+1-F28<>0,B28+1=B29),"Datum + Uhrzeit prüfen !",IF(OR(AND(B28+1=B29,C28<1600),AND(B28+1=B29,D29>800)),"Pauschale prüfen !","")))))) ->  | M29: =IF(N28="J",VLOOKUP(K28,Staaten!$A$7:$F$366,6,FALSE)," ") -> 
B30: =IF(A30="",B28,DATE(Jahr,RIGHT(A30,2),LEFT(A30,LEN(A30)-2))) -> 2019-12-31 | E30: 00:00:00 | F30: 00:00:00 | G30: 0 | K30: =IF(ISERROR(VLOOKUP(J30,Städte!$A$2:$B$1030,2,0))," ",VLOOKUP(J30,Städte!$A$2:$B$1030,2,0)) ->  | L30: =IF(OR(D30>2400,D31>2400,G30="X",G31="X"),"Uhrzeit prüfen!",IF(OR(J31<>"",L31<>""),"",IF(AND(G30+G31>8/24,G30+G31<24/24),VLOOKUP(K30,Staaten!$A$7:$D$336,3,0),IF(OR(AND(B30-B28=1,D28=2400,ISNUMBER(C30),C30=0,G30<1),AND(B32-B30=1,C32=0,D30=2400,G30<1)),VLOOKUP(K30,Staaten!$A$7:$D$336,4,0),IF(G30+G31>=24/24,VLOOKUP(K30,Staaten!$A$7:$B$336,2,0),""))))) ->  | M30: =IF(AND($A$3="A",B30+100-B31<>0,N30="N"),VLOOKUP(K30,Staaten!$A$7:$E$366,5,FALSE),IF(AND($A$3="U",B30+100-B31<>0,N30="N"),VLOOKUP(K30,Staaten!$A$4:$I$366,9,FALSE)," ")) ->  | R30: =IF(Q30="","",VLOOKUP(Q30,Fahrzeug!$A$2:$B$20,2,0)) ->  | S30: =IF(Q30=""," ",O30*R30) ->  | U30: =IF(RIGHT(W31,17)="Kürzung Pauschale",-MIN(VLOOKUP(K30,Staaten!$A$7:$B$336,2,0)*LEFT(W31,4),L30),"") ->  | W30: =IF(ISERROR(VLOOKUP(W31,Kontenplan!$A$4:$B$110,2,0)),"",IF($A$3="A",VLOOKUP(W31,Kontenplan!$A$4:$B$110,2,0),IF(ISERROR(VLOOKUP(W31,Kontenplan!$A$4:$C$110,3,0))," ",IF($A$3="U",VLOOKUP(W31,Kontenplan!$A$4:$C$110,3,0)," ")))) -> 
B31: =IF(A31="",B30,DATE(Jahr,RIGHT(A31,2),LEFT(A31,LEN(A31)-2))) -> 2019-12-31 | E31: 00:00:00 | F31: 00:00:00 | G31: 0 | K31: =VLOOKUP(K30,Staaten!$A$7:$G$347,7,0) ->  | L31: =IF(AND(D30>0,B30<=0),"Datum fehlt !",IF(AND(D31>0,B31<=0),"Datum fehlt !",IF(NOT(OR(B30=B31,B30+1=B31,B31<=0,)),"Datum prüfen !",IF(OR(AND(B29=B30,E30<F29),AND(B30=B31,E31<F30)),"Datum + Uhrzeit prüfen !",IF(AND(E31+1-F30<>0,B30+1=B31),"Datum + Uhrzeit prüfen !",IF(OR(AND(B30+1=B31,C30<1600),AND(B30+1=B31,D31>800)),"Pauschale prüfen !","")))))) ->  | M31: =IF(N30="J",VLOOKUP(K30,Staaten!$A$7:$F$366,6,FALSE)," ") -> 
B32: =IF(A32="",B30,DATE(Jahr,RIGHT(A32,2),LEFT(A32,LEN(A32)-2))) -> 2019-12-31 | E32: 00:00:00 | F32: 00:00:00 | G32: 0 | K32: =IF(ISERROR(VLOOKUP(J32,Städte!$A$2:$B$1030,2,0))," ",VLOOKUP(J32,Städte!$A$2:$B$1030,2,0)) ->  | L32: =IF(OR(D32>2400,D33>2400,G32="X",G33="X"),"Uhrzeit prüfen!",IF(OR(J33<>"",L33<>""),"",IF(AND(G32+G33>8/24,G32+G33<24/24),VLOOKUP(K32,Staaten!$A$7:$D$336,3,0),IF(OR(AND(B32-B30=1,D30=2400,ISNUMBER(C32),C32=0,G32<1),AND(B34-B32=1,C34=0,D32=2400,G32<1)),VLOOKUP(K32,Staaten!$A$7:$D$336,4,0),IF(G32+G33>=24/24,VLOOKUP(K32,Staaten!$A$7:$B$336,2,0),""))))) ->  | M32: =IF(AND($A$3="A",B32+100-B33<>0,N32="N"),VLOOKUP(K32,Staaten!$A$7:$E$366,5,FALSE),IF(AND($A$3="U",B32+100-B33<>0,N32="N"),VLOOKUP(K32,Staaten!$A$4:$I$366,9,FALSE)," ")) ->  | R32: =IF(Q32="","",VLOOKUP(Q32,Fahrzeug!$A$2:$B$20,2,0)) ->  | S32: =IF(Q32=""," ",O32*R32) ->  | U32: =IF(RIGHT(W33,17)="Kürzung Pauschale",-MIN(VLOOKUP(K32,Staaten!$A$7:$B$336,2,0)*LEFT(W33,4),L32),"") ->  | W32: =IF(ISERROR(VLOOKUP(W33,Kontenplan!$A$4:$B$110,2,0)),"",IF($A$3="A",VLOOKUP(W33,Kontenplan!$A$4:$B$110,2,0),IF(ISERROR(VLOOKUP(W33,Kontenplan!$A$4:$C$110,3,0))," ",IF($A$3="U",VLOOKUP(W33,Kontenplan!$A$4:$C$110,3,0)," ")))) -> 
B33: =IF(A33="",B32,DATE(Jahr,RIGHT(A33,2),LEFT(A33,LEN(A33)-2))) -> 2019-12-31 | E33: 00:00:00 | F33: 00:00:00 | G33: 0 | K33: =VLOOKUP(K32,Staaten!$A$7:$G$347,7,0) ->  | L33: =IF(AND(D32>0,B32<=0),"Datum fehlt !",IF(AND(D33>0,B33<=0),"Datum fehlt !",IF(NOT(OR(B32=B33,B32+1=B33,B33<=0,)),"Datum prüfen !",IF(OR(AND(B31=B32,E32<F31),AND(B32=B33,E33<F32)),"Datum + Uhrzeit prüfen !",IF(AND(E33+1-F32<>0,B32+1=B33),"Datum + Uhrzeit prüfen !",IF(OR(AND(B32+1=B33,C32<1600),AND(B32+1=B33,D33>800)),"Pauschale prüfen !","")))))) ->  | M33: =IF(N32="J",VLOOKUP(K32,Staaten!$A$7:$F$366,6,FALSE)," ") -> 
B34: =IF(A34="",B32,DATE(Jahr,RIGHT(A34,2),LEFT(A34,LEN(A34)-2))) -> 2019-12-31 | E34: 00:00:00 | F34: 00:00:00 | G34: 0 | K34: =IF(ISERROR(VLOOKUP(J34,Städte!$A$2:$B$1030,2,0))," ",VLOOKUP(J34,Städte!$A$2:$B$1030,2,0)) ->  | L34: =IF(OR(D34>2400,D35>2400,G34="X",G35="X"),"Uhrzeit prüfen!",IF(OR(J35<>"",L35<>""),"",IF(AND(G34+G35>8/24,G34+G35<24/24),VLOOKUP(K34,Staaten!$A$7:$D$336,3,0),IF(OR(AND(B34-B32=1,D32=2400,ISNUMBER(C34),C34=0,G34<1),AND(B36-B34=1,C36=0,D34=2400,G34<1)),VLOOKUP(K34,Staaten!$A$7:$D$336,4,0),IF(G34+G35>=24/24,VLOOKUP(K34,Staaten!$A$7:$B$336,2,0),""))))) ->  | M34: =IF(AND($A$3="A",B34+100-B35<>0,N34="N"),VLOOKUP(K34,Staaten!$A$7:$E$366,5,FALSE),IF(AND($A$3="U",B34+100-B35<>0,N34="N"),VLOOKUP(K34,Staaten!$A$4:$I$366,9,FALSE)," ")) ->  | R34: =IF(Q34="","",VLOOKUP(Q34,Fahrzeug!$A$2:$B$20,2,0)) ->  | S34: =IF(Q34=""," ",O34*R34) ->  | U34: =IF(RIGHT(W35,17)="Kürzung Pauschale",-MIN(VLOOKUP(K34,Staaten!$A$7:$B$336,2,0)*LEFT(W35,4),L34),"") ->  | W34: =IF(ISERROR(VLOOKUP(W35,Kontenplan!$A$4:$B$110,2,0)),"",IF($A$3="A",VLOOKUP(W35,Kontenplan!$A$4:$B$110,2,0),IF(ISERROR(VLOOKUP(W35,Kontenplan!$A$4:$C$110,3,0))," ",IF($A$3="U",VLOOKUP(W35,Kontenplan!$A$4:$C$110,3,0)," ")))) -> 
B35: =IF(A35="",B34,DATE(Jahr,RIGHT(A35,2),LEFT(A35,LEN(A35)-2))) -> 2019-12-31 | E35: 00:00:00 | F35: 00:00:00 | G35: 0 | K35: =VLOOKUP(K34,Staaten!$A$7:$G$347,7,0) ->  | L35: =IF(AND(D34>0,B34<=0),"Datum fehlt !",IF(AND(D35>0,B35<=0),"Datum fehlt !",IF(NOT(OR(B34=B35,B34+1=B35,B35<=0,)),"Datum prüfen !",IF(OR(AND(B33=B34,E34<F33),AND(B34=B35,E35<F34)),"Datum + Uhrzeit prüfen !",IF(AND(E35+1-F34<>0,B34+1=B35),"Datum + Uhrzeit prüfen !",IF(OR(AND(B34+1=B35,C34<1600),AND(B34+1=B35,D35>800)),"Pauschale prüfen !","")))))) ->  | M35: =IF(N34="J",VLOOKUP(K34,Staaten!$A$7:$F$366,6,FALSE)," ") -> 
B36: =IF(A36="",B34,DATE(Jahr,RIGHT(A36,2),LEFT(A36,LEN(A36)-2))) -> 2019-12-31 | E36: 00:00:00 | F36: 00:00:00 | G36: 0 | K36: =IF(ISERROR(VLOOKUP(J36,Städte!$A$2:$B$1030,2,0))," ",VLOOKUP(J36,Städte!$A$2:$B$1030,2,0)) ->  | L36: =IF(OR(D36>2400,D37>2400,G36="X",G37="X"),"Uhrzeit prüfen!",IF(OR(J37<>"",L37<>""),"",IF(AND(G36+G37>8/24,G36+G37<24/24),VLOOKUP(K36,Staaten!$A$7:$D$336,3,0),IF(OR(AND(B36-B34=1,D34=2400,ISNUMBER(C36),C36=0,G36<1),AND(B38-B36=1,C38=0,D36=2400,G36<1)),VLOOKUP(K36,Staaten!$A$7:$D$336,4,0),IF(G36+G37>=24/24,VLOOKUP(K36,Staaten!$A$7:$B$336,2,0),""))))) ->  | M36: =IF(AND($A$3="A",B36+100-B37<>0,N36="N"),VLOOKUP(K36,Staaten!$A$7:$E$366,5,FALSE),IF(AND($A$3="U",B36+100-B37<>0,N36="N"),VLOOKUP(K36,Staaten!$A$4:$I$366,9,FALSE)," ")) ->  | R36: =IF(Q36="","",VLOOKUP(Q36,Fahrzeug!$A$2:$B$20,2,0)) ->  | S36: =IF(Q36=""," ",O36*R36) ->  | U36: =IF(RIGHT(W37,17)="Kürzung Pauschale",-MIN(VLOOKUP(K36,Staaten!$A$7:$B$336,2,0)*LEFT(W37,4),L36),"") ->  | W36: =IF(ISERROR(VLOOKUP(W37,Kontenplan!$A$4:$B$110,2,0)),"",IF($A$3="A",VLOOKUP(W37,Kontenplan!$A$4:$B$110,2,0),IF(ISERROR(VLOOKUP(W37,Kontenplan!$A$4:$C$110,3,0))," ",IF($A$3="U",VLOOKUP(W37,Kontenplan!$A$4:$C$110,3,0)," ")))) -> 
B37: =IF(A37="",B36,DATE(Jahr,RIGHT(A37,2),LEFT(A37,LEN(A37)-2))) -> 2019-12-31 | E37: 00:00:00 | F37: 00:00:00 | G37: 0 | K37: =VLOOKUP(K36,Staaten!$A$7:$G$347,7,0) ->  | L37: =IF(AND(D36>0,B36<=0),"Datum fehlt !",IF(AND(D37>0,B37<=0),"Datum fehlt !",IF(NOT(OR(B36=B37,B36+1=B37,B37<=0,)),"Datum prüfen !",IF(OR(AND(B35=B36,E36<F35),AND(B36=B37,E37<F36)),"Datum + Uhrzeit prüfen !",IF(AND(E37+1-F36<>0,B36+1=B37),"Datum + Uhrzeit prüfen !",IF(OR(AND(B36+1=B37,C36<1600),AND(B36+1=B37,D37>800)),"Pauschale prüfen !","")))))) ->  | M37: =IF(N36="J",VLOOKUP(K36,Staaten!$A$7:$F$366,6,FALSE)," ") -> 
B38: =IF(A38="",B36,DATE(Jahr,RIGHT(A38,2),LEFT(A38,LEN(A38)-2))) -> 2019-12-31 | E38: 00:00:00 | F38: 00:00:00 | G38: 0 | K38: =IF(ISERROR(VLOOKUP(J38,Städte!$A$2:$B$1030,2,0))," ",VLOOKUP(J38,Städte!$A$2:$B$1030,2,0)) ->  | L38: =IF(OR(D38>2400,D39>2400,G38="X",G39="X"),"Uhrzeit prüfen!",IF(OR(J39<>"",L39<>""),"",IF(AND(G38+G39>8/24,G38+G39<24/24),VLOOKUP(K38,Staaten!$A$7:$D$336,3,0),IF(OR(AND(B38-B36=1,D36=2400,ISNUMBER(C38),C38=0,G38<1),AND(B40-B38=1,C40=0,D38=2400,G38<1)),VLOOKUP(K38,Staaten!$A$7:$D$336,4,0),IF(G38+G39>=24/24,VLOOKUP(K38,Staaten!$A$7:$B$336,2,0),""))))) ->  | M38: =IF(AND($A$3="A",B38+100-B39<>0,N38="N"),VLOOKUP(K38,Staaten!$A$7:$E$366,5,FALSE),IF(AND($A$3="U",B38+100-B39<>0,N38="N"),VLOOKUP(K38,Staaten!$A$4:$I$366,9,FALSE)," ")) ->  | R38: =IF(Q38="","",VLOOKUP(Q38,Fahrzeug!$A$2:$B$20,2,0)) ->  | S38: =IF(Q38=""," ",O38*R38) ->  | U38: =IF(RIGHT(W39,17)="Kürzung Pauschale",-MIN(VLOOKUP(K38,Staaten!$A$7:$B$336,2,0)*LEFT(W39,4),L38),"") ->  | W38: =IF(ISERROR(VLOOKUP(W39,Kontenplan!$A$4:$B$110,2,0)),"",IF($A$3="A",VLOOKUP(W39,Kontenplan!$A$4:$B$110,2,0),IF(ISERROR(VLOOKUP(W39,Kontenplan!$A$4:$C$110,3,0))," ",IF($A$3="U",VLOOKUP(W39,Kontenplan!$A$4:$C$110,3,0)," ")))) -> 
B39: =IF(A39="",B38,DATE(Jahr,RIGHT(A39,2),LEFT(A39,LEN(A39)-2))) -> 2019-12-31 | E39: 00:00:00 | F39: 00:00:00 | G39: 0 | K39: =VLOOKUP(K38,Staaten!$A$7:$G$347,7,0) ->  | L39: =IF(AND(D38>0,B38<=0),"Datum fehlt !",IF(AND(D39>0,B39<=0),"Datum fehlt !",IF(NOT(OR(B38=B39,B38+1=B39,B39<=0,)),"Datum prüfen !",IF(OR(AND(B37=B38,E38<F37),AND(B38=B39,E39<F38)),"Datum + Uhrzeit prüfen !",IF(AND(E39+1-F38<>0,B38+1=B39),"Datum + Uhrzeit prüfen !",IF(OR(AND(B38+1=B39,C38<1600),AND(B38+1=B39,D39>800)),"Pauschale prüfen !","")))))) ->  | M39: =IF(N38="J",VLOOKUP(K38,Staaten!$A$7:$F$366,6,FALSE)," ") -> 
B40: =IF(A40="",B38,DATE(Jahr,RIGHT(A40,2),LEFT(A40,LEN(A40)-2))) -> 2019-12-31 | E40: 00:00:00 | F40: 00:00:00 | G40: 0 | K40: =IF(ISERROR(VLOOKUP(J40,Städte!$A$2:$B$1030,2,0))," ",VLOOKUP(J40,Städte!$A$2:$B$1030,2,0)) ->  | L40: =IF(OR(D40>2400,D41>2400,G40="X",G41="X"),"Uhrzeit prüfen!",IF(OR(J41<>"",L41<>""),"",IF(AND(G40+G41>8/24,G40+G41<24/24),VLOOKUP(K40,Staaten!$A$7:$D$336,3,0),IF(OR(AND(B40-B38=1,D38=2400,ISNUMBER(C40),C40=0,G40<1),AND(B42-B40=1,C42=0,D40=2400,G40<1)),VLOOKUP(K40,Staaten!$A$7:$D$336,4,0),IF(G40+G41>=24/24,VLOOKUP(K40,Staaten!$A$7:$B$336,2,0),""))))) ->  | M40: =IF(AND($A$3="A",B40+100-B41<>0,N40="N"),VLOOKUP(K40,Staaten!$A$7:$E$366,5,FALSE),IF(AND($A$3="U",B40+100-B41<>0,N40="N"),VLOOKUP(K40,Staaten!$A$4:$I$366,9,FALSE)," ")) ->  | R40: =IF(Q40="","",VLOOKUP(Q40,Fahrzeug!$A$2:$B$20,2,0)) ->  | S40: =IF(Q40=""," ",O40*R40) ->  | U40: =IF(RIGHT(W41,17)="Kürzung Pauschale",-MIN(VLOOKUP(K40,Staaten!$A$7:$B$336,2,0)*LEFT(W41,4),L40),"") ->  | W40: =IF(ISERROR(VLOOKUP(W41,Kontenplan!$A$4:$B$110,2,0)),"",IF($A$3="A",VLOOKUP(W41,Kontenplan!$A$4:$B$110,2,0),IF(ISERROR(VLOOKUP(W41,Kontenplan!$A$4:$C$110,3,0))," ",IF($A$3="U",VLOOKUP(W41,Kontenplan!$A$4:$C$110,3,0)," ")))) -> 
B41: =IF(A41="",B40,DATE(Jahr,RIGHT(A41,2),LEFT(A41,LEN(A41)-2))) -> 2019-12-31 | E41: 00:00:00 | F41: 00:00:00 | G41: 0 | K41: =VLOOKUP(K40,Staaten!$A$7:$G$347,7,0) ->  | L41: =IF(AND(D40>0,B40<=0),"Datum fehlt !",IF(AND(D41>0,B41<=0),"Datum fehlt !",IF(NOT(OR(B40=B41,B40+1=B41,B41<=0,)),"Datum prüfen !",IF(OR(AND(B39=B40,E40<F39),AND(B40=B41,E41<F40)),"Datum + Uhrzeit prüfen !",IF(AND(E41+1-F40<>0,B40+1=B41),"Datum + Uhrzeit prüfen !",IF(OR(AND(B40+1=B41,C40<1600),AND(B40+1=B41,D41>800)),"Pauschale prüfen !","")))))) ->  | M41: =IF(N40="J",VLOOKUP(K40,Staaten!$A$7:$F$366,6,FALSE)," ") -> 
B42: =IF(A42="",B40,DATE(Jahr,RIGHT(A42,2),LEFT(A42,LEN(A42)-2))) -> 2019-12-31 | E42: 00:00:00 | F42: 00:00:00 | G42: 0 | K42: =IF(ISERROR(VLOOKUP(J42,Städte!$A$2:$B$1030,2,0))," ",VLOOKUP(J42,Städte!$A$2:$B$1030,2,0)) ->  | L42: =IF(OR(D42>2400,D43>2400,G42="X",G43="X"),"Uhrzeit prüfen!",IF(OR(J43<>"",L43<>""),"",IF(AND(G42+G43>8/24,G42+G43<24/24),VLOOKUP(K42,Staaten!$A$7:$D$336,3,0),IF(OR(AND(B42-B40=1,D40=2400,ISNUMBER(C42),C42=0,G42<1),AND(B44-B42=1,C44=0,D42=2400,G42<1)),VLOOKUP(K42,Staaten!$A$7:$D$336,4,0),IF(G42+G43>=24/24,VLOOKUP(K42,Staaten!$A$7:$B$336,2,0),""))))) ->  | M42: =IF(AND($A$3="A",B42+100-B43<>0,N42="N"),VLOOKUP(K42,Staaten!$A$7:$E$366,5,FALSE),IF(AND($A$3="U",B42+100-B43<>0,N42="N"),VLOOKUP(K42,Staaten!$A$4:$I$366,9,FALSE)," ")) ->  | R42: =IF(Q42="","",VLOOKUP(Q42,Fahrzeug!$A$2:$B$20,2,0)) ->  | S42: =IF(Q42=""," ",O42*R42) ->  | U42: =IF(RIGHT(W43,17)="Kürzung Pauschale",-MIN(VLOOKUP(K42,Staaten!$A$7:$B$336,2,0)*LEFT(W43,4),L42),"") ->  | W42: =IF(ISERROR(VLOOKUP(W43,Kontenplan!$A$4:$B$110,2,0)),"",IF($A$3="A",VLOOKUP(W43,Kontenplan!$A$4:$B$110,2,0),IF(ISERROR(VLOOKUP(W43,Kontenplan!$A$4:$C$110,3,0))," ",IF($A$3="U",VLOOKUP(W43,Kontenplan!$A$4:$C$110,3,0)," ")))) -> 
B43: =IF(A43="",B42,DATE(Jahr,RIGHT(A43,2),LEFT(A43,LEN(A43)-2))) -> 2019-12-31 | E43: 00:00:00 | F43: 00:00:00 | G43: 0 | K43: =VLOOKUP(K42,Staaten!$A$7:$G$347,7,0) ->  | L43: =IF(AND(D42>0,B42<=0),"Datum fehlt !",IF(AND(D43>0,B43<=0),"Datum fehlt !",IF(NOT(OR(B42=B43,B42+1=B43,B43<=0,)),"Datum prüfen !",IF(OR(AND(B41=B42,E42<F41),AND(B42=B43,E43<F42)),"Datum + Uhrzeit prüfen !",IF(AND(E43+1-F42<>0,B42+1=B43),"Datum + Uhrzeit prüfen !",IF(OR(AND(B42+1=B43,C42<1600),AND(B42+1=B43,D43>800)),"Pauschale prüfen !","")))))) ->  | M43: =IF(N42="J",VLOOKUP(K42,Staaten!$A$7:$F$366,6,FALSE)," ") -> 
L44: =SUM(L10:L43) -> 0 | W44: Summe
D45: =IF(AND(A3="U",C45<>""),"Pauschalversteuerung bei Unternehmer nicht möglich !","Zuschlag bei Pauschalversteuerung (25% + KiSt + SolZ) durch Arbeitgeber") -> Zuschlag bei Pauschalversteuerung (25% + KiSt + SolZ) durch Arbeitgeber | L45: =IF(A3="A",ROUND(L44*C45,2),0) -> 0 | W45: Euro
D46: Anzahl der Übernachtungen in Moskau in Gästewohnungen der Deutschen Botschaft | M46: =IF(Jahr>=2010,C46*135,0) -> 0
C47: =IF(L45>L44,L45-L44," ") ->  | L47: =SUM(L44:L45) -> 0 | M47: =SUM(M10:M46) -> 0 | S47: =SUM(S10:S43) -> 0 | T47: =SUM(T10:T43) -> 0 | U47: =SUM(U10:U43) -> 0 | W47: =SUM(L47:M47)+SUM(S47:U47) -> 0
A50: Kontierung | L50: =IF(A3="A"," 6664"," 6674") -> 6664 | M50: =IF($A$3="A"," 6660"," 6680") -> 6660 | S50: =IF($A$3="A",6668,6688) -> 6668 | T50: 906640 | W50: Auszahlung
W51: bar / Scheck Nr.
A53: ..................... | D53: =K2 -> 2020-01-31
I55: (Unterschrift)

Sheet VSt.Verpfl.
A2: Vorsteuerabzug aus Reisekosten-Abrechnung | I2: =Reisek.!T2 -> Thomas Mustermann
B3: =Reisek.!J2 -> 2020-01-01 | F3: =Reisek.!K2 -> 2020-01-31
A5: Datum | B5: Uhrzeit | D5: Stunden | F5: Geschäftspartner | G5: Verpflegungsmehraufwand
B6: von | C6: bis | F6: Reisezweck | G6: - Pauschale - | H6: tatsächliche Kosten | J6: VSt.-Abzug aus | K6: abziehbare VSt.
G7: € | H7: € | I7: % VSt. | J7: € | K7: €
A9: =IF(Reisek.!A10<=0," ",Reisek.!A10) ->  | B9: =IF(OR(Reisek.!E10=0,Reisek.!G10=0),"",Reisek.!E10) ->  | C9: =IF(Reisek.!F10=0," ",Reisek.!F10) ->  | D9: =IF(Reisek.!G10=0," ",Reisek.!H10) ->  | F9: =IF(Reisek.!I10<=0," ",Reisek.!I10) ->  | G9: =IF(Reisek.!L10="",0,Reisek.!L10) -> 0 | J9: =IF(H9="","",IF(Reisek.!$A$3="U",H9,IF(AND(Reisek.!$A$3="A",(H9+H10)<=G9*(1+Reisek.!$C$45)),H9,""))) ->  | K9: =IF(J9="","",ROUND(J9/(100+I9)*I9,2)) -> 
A10: =IF(Reisek.!A11<=0," ",Reisek.!A11) ->  | B10: =IF(OR(Reisek.!E11=0,Reisek.!G11=0),"",Reisek.!E11) ->  | C10: =IF(Reisek.!F11=0," ",Reisek.!F11) ->  | D10: =IF(Reisek.!G11=0," ",Reisek.!H11) ->  | F10: =IF(Reisek.!I11<=0," ",Reisek.!I11) ->  | G10: =IF(Reisek.!L11="",0,Reisek.!L11) -> 0 | J10: =IF(H10="","",IF(Reisek.!$A$3="U",H10,IF(AND(Reisek.!$A$3="A",(H9+H10)<=G9*(1+Reisek.!$C$45)),H10,""))) ->  | K10: =IF(J10="","",ROUND(J10/(100+I10)*I10,2)) -> 
A11: =IF(Reisek.!A12<=0," ",Reisek.!A12) ->  | B11: =IF(OR(Reisek.!E12=0,Reisek.!G12=0),"",Reisek.!E12) ->  | C11: =IF(Reisek.!F12=0," ",Reisek.!F12) ->  | D11: =IF(Reisek.!G12=0," ",Reisek.!H12) ->  | F11: =IF(Reisek.!I12<=0," ",Reisek.!I12) ->  | G11: =IF(Reisek.!L12="",0,Reisek.!L12) -> 0 | J11: =IF(H11="","",IF(Reisek.!$A$3="U",H11,IF(AND(Reisek.!$A$3="A",(H11+H12)<=G11*(1+Reisek.!$C$45)),H11,""))) ->  | K11: =IF(J11="","",ROUND(J11/(100+I11)*I11,2)) -> 
A12: =IF(Reisek.!A13<=0," ",Reisek.!A13) ->  | B12: =IF(OR(Reisek.!E13=0,Reisek.!G13=0),"",Reisek.!E13) ->  | C12: =IF(Reisek.!F13=0," ",Reisek.!F13) ->  | D12: =IF(Reisek.!G13=0," ",Reisek.!H13) ->  | F12: =IF(Reisek.!I13<=0," ",Reisek.!I13) ->  | G12: =IF(Reisek.!L13="",0,Reisek.!L13) -> 0 | J12: =IF(H12="","",IF(Reisek.!$A$3="U",H12,IF(AND(Reisek.!$A$3="A",(H11+H12)<=G11*(1+Reisek.!$C$45)),H12,""))) -> 
A13: =IF(Reisek.!A14<=0," ",Reisek.!A14) ->  | B13: =IF(OR(Reisek.!E14=0,Reisek.!G14=0),"",Reisek.!E14) ->  | C13: =IF(Reisek.!F14=0," ",Reisek.!F14) ->  | D13: =IF(Reisek.!G14=0," ",Reisek.!H14) ->  | F13: =IF(Reisek.!I14<=0," ",Reisek.!I14) ->  | G13: =IF(Reisek.!L14="",0,Reisek.!L14) -> 0 | J13: =IF(H13="","",IF(Reisek.!$A$3="U",H13,IF(AND(Reisek.!$A$3="A",(H13+H14)<=G13*(1+Reisek.!$C$45)),H13,""))) -> 
A14: =IF(Reisek.!A15<=0," ",Reisek.!A15) ->  | B14: =IF(OR(Reisek.!E15=0,Reisek.!G15=0),"",Reisek.!E15) ->  | C14: =IF(Reisek.!F15=0," ",Reisek.!F15) ->  | D14: =IF(Reisek.!G15=0," ",Reisek.!H15) ->  | F14: =IF(Reisek.!I15<=0," ",Reisek.!I15) ->  | G14: =IF(Reisek.!L15="",0,Reisek.!L15) -> 0 | J14: =IF(H14="","",IF(Reisek.!$A$3="U",H14,IF(AND(Reisek.!$A$3="A",(H13+H14)<=G13*(1+Reisek.!$C$45)),H14,""))) -> 
A15: =IF(Reisek.!A16<=0," ",Reisek.!A16) ->  | B15: =IF(OR(Reisek.!E16=0,Reisek.!G16=0),"",Reisek.!E16) ->  | C15: =IF(Reisek.!F16=0," ",Reisek.!F16) ->  | D15: =IF(Reisek.!G16=0," ",Reisek.!H16) ->  | F15: =IF(Reisek.!I16<=0," ",Reisek.!I16) ->  | G15: =IF(Reisek.!L16="",0,Reisek.!L16) -> 0 | J15: =IF(H15="","",IF(Reisek.!$A$3="U",H15,IF(AND(Reisek.!$A$3="A",(H15+H16)<=G15*(1+Reisek.!$C$45)),H15,""))) -> 
A16: =IF(Reisek.!A17<=0," ",Reisek.!A17) ->  | B16: =IF(OR(Reisek.!E17=0,Reisek.!G17=0),"",Reisek.!E17) ->  | C16: =IF(Reisek.!F17=0," ",Reisek.!F17) ->  | D16: =IF(Reisek.!G17=0," ",Reisek.!H17) ->  | F16: =IF(Reisek.!I17<=0," ",Reisek.!I17) ->  | G16: =IF(Reisek.!L17="",0,Reisek.!L17) -> 0 | J16: =IF(H16="","",IF(Reisek.!$A$3="U",H16,IF(AND(Reisek.!$A$3="A",(H15+H16)<=G15*(1+Reisek.!$C$45)),H16,""))) -> 
A17: =IF(Reisek.!A18<=0," ",Reisek.!A18) ->  | B17: =IF(OR(Reisek.!E18=0,Reisek.!G18=0),"",Reisek.!E18) ->  | C17: =IF(Reisek.!F18=0," ",Reisek.!F18) ->  | D17: =IF(Reisek.!G18=0," ",Reisek.!H18) ->  | F17: =IF(Reisek.!I18<=0," ",Reisek.!I18) ->  | G17: =IF(Reisek.!L18="",0,Reisek.!L18) -> 0 | J17: =IF(H17="","",IF(Reisek.!$A$3="U",H17,IF(AND(Reisek.!$A$3="A",(H17+H18)<=G17*(1+Reisek.!$C$45)),H17,""))) -> 
A18: =IF(Reisek.!A19<=0," ",Reisek.!A19) ->  | B18: =IF(OR(Reisek.!E19=0,Reisek.!G19=0),"",Reisek.!E19) ->  | C18: =IF(Reisek.!F19=0," ",Reisek.!F19) ->  | D18: =IF(Reisek.!G19=0," ",Reisek.!H19) ->  | F18: =IF(Reisek.!I19<=0," ",Reisek.!I19) ->  | G18: =IF(Reisek.!L19="",0,Reisek.!L19) -> 0 | J18: =IF(H18="","",IF(Reisek.!$A$3="U",H18,IF(AND(Reisek.!$A$3="A",(H17+H18)<=G17*(1+Reisek.!$C$45)),H18,""))) -> 
A19: =IF(Reisek.!A20<=0," ",Reisek.!A20) ->  | B19: =IF(OR(Reisek.!E20=0,Reisek.!G20=0),"",Reisek.!E20) ->  | C19: =IF(Reisek.!F20=0," ",Reisek.!F20) ->  | D19: =IF(Reisek.!G20=0," ",Reisek.!H20) ->  | F19: =IF(Reisek.!I20<=0," ",Reisek.!I20) ->  | G19: =IF(Reisek.!L20="",0,Reisek.!L20) -> 0 | J19: =IF(H19="","",IF(Reisek.!$A$3="U",H19,IF(AND(Reisek.!$A$3="A",(H19+H20)<=G19*(1+Reisek.!$C$45)),H19,""))) -> 
A20: =IF(Reisek.!A21<=0," ",Reisek.!A21) ->  | B20: =IF(OR(Reisek.!E21=0,Reisek.!G21=0),"",Reisek.!E21) ->  | C20: =IF(Reisek.!F21=0," ",Reisek.!F21) ->  | D20: =IF(Reisek.!G21=0," ",Reisek.!H21) ->  | F20: =IF(Reisek.!I21<=0," ",Reisek.!I21) ->  | G20: =IF(Reisek.!L21="",0,Reisek.!L21) -> 0 | J20: =IF(H20="","",IF(Reisek.!$A$3="U",H20,IF(AND(Reisek.!$A$3="A",(H19+H20)<=G19*(1+Reisek.!$C$45)),H20,""))) -> 
A21: =IF(Reisek.!A22<=0," ",Reisek.!A22) ->  | B21: =IF(OR(Reisek.!E22=0,Reisek.!G22=0),"",Reisek.!E22) ->  | C21: =IF(Reisek.!F22=0," ",Reisek.!F22) ->  | D21: =IF(Reisek.!G22=0," ",Reisek.!H22) ->  | F21: =IF(Reisek.!I22<=0," ",Reisek.!I22) ->  | G21: =IF(Reisek.!L22="",0,Reisek.!L22) -> 0 | J21: =IF(H21="","",IF(Reisek.!$A$3="U",H21,IF(AND(Reisek.!$A$3="A",(H21+H22)<=G21*(1+Reisek.!$C$45)),H21,""))) -> 
A22: =IF(Reisek.!A23<=0," ",Reisek.!A23) ->  | B22: =IF(OR(Reisek.!E23=0,Reisek.!G23=0),"",Reisek.!E23) ->  | C22: =IF(Reisek.!F23=0," ",Reisek.!F23) ->  | D22: =IF(Reisek.!G23=0," ",Reisek.!H23) ->  | F22: =IF(Reisek.!I23<=0," ",Reisek.!I23) ->  | G22: =IF(Reisek.!L23="",0,Reisek.!L23) -> 0 | J22: =IF(H22="","",IF(Reisek.!$A$3="U",H22,IF(AND(Reisek.!$A$3="A",(H21+H22)<=G21*(1+Reisek.!$C$45)),H22,""))) -> 
A23: =IF(Reisek.!A24<=0," ",Reisek.!A24) ->  | B23: =IF(OR(Reisek.!E24=0,Reisek.!G24=0),"",Reisek.!E24) ->  | C23: =IF(Reisek.!F24=0," ",Reisek.!F24) ->  | D23: =IF(Reisek.!G24=0," ",Reisek.!H24) ->  | F23: =IF(Reisek.!I24<=0," ",Reisek.!I24) ->  | G23: =IF(Reisek.!L24="",0,Reisek.!L24) -> 0 | J23: =IF(H23="","",IF(Reisek.!$A$3="U",H23,IF(AND(Reisek.!$A$3="A",(H23+H24)<=G23*(1+Reisek.!$C$45)),H23,""))) -> 
A24: =IF(Reisek.!A25<=0," ",Reisek.!A25) ->  | B24: =IF(OR(Reisek.!E25=0,Reisek.!G25=0),"",Reisek.!E25) ->  | C24: =IF(Reisek.!F25=0," ",Reisek.!F25) ->  | D24: =IF(Reisek.!G25=0," ",Reisek.!H25) ->  | F24: =IF(Reisek.!I25<=0," ",Reisek.!I25) ->  | G24: =IF(Reisek.!L25="",0,Reisek.!L25) -> 0 | J24: =IF(H24="","",IF(Reisek.!$A$3="U",H24,IF(AND(Reisek.!$A$3="A",(H23+H24)<=G23*(1+Reisek.!$C$45)),H24,""))) -> 
A25: =IF(Reisek.!A26<=0," ",Reisek.!A26) ->  | B25: =IF(OR(Reisek.!E26=0,Reisek.!G26=0),"",Reisek.!E26) ->  | C25: =IF(Reisek.!F26=0," ",Reisek.!F26) ->  | D25: =IF(Reisek.!G26=0," ",Reisek.!H26) ->  | F25: =IF(Reisek.!I26<=0," ",Reisek.!I26) ->  | G25: =IF(Reisek.!L26="",0,Reisek.!L26) -> 0 | J25: =IF(H25="","",IF(Reisek.!$A$3="U",H25,IF(AND(Reisek.!$A$3="A",(H25+H26)<=G25*(1+Reisek.!$C$45)),H25,""))) -> 
A26: =IF(Reisek.!A27<=0," ",Reisek.!A27) ->  | B26: =IF(OR(Reisek.!E27=0,Reisek.!G27=0),"",Reisek.!E27) ->  | C26: =IF(Reisek.!F27=0," ",Reisek.!F27) ->  | D26: =IF(Reisek.!G27=0," ",Reisek.!H27) ->  | F26: =IF(Reisek.!I27<=0," ",Reisek.!I27) ->  | G26: =IF(Reisek.!L27="",0,Reisek.!L27) -> 0 | J26: =IF(H26="","",IF(Reisek.!$A$3="U",H26,IF(AND(Reisek.!$A$3="A",(H25+H26)<=G25*(1+Reisek.!$C$45)),H26,""))) -> 
A27: =IF(Reisek.!A28<=0," ",Reisek.!A28) ->  | B27: =IF(OR(Reisek.!E28=0,Reisek.!G28=0),"",Reisek.!E28) ->  | C27: =IF(Reisek.!F28=0," ",Reisek.!F28) ->  | D27: =IF(Reisek.!G28=0," ",Reisek.!H28) ->  | F27: =IF(Reisek.!I28<=0," ",Reisek.!I28) ->  | G27: =IF(Reisek.!L28="",0,Reisek.!L28) -> 0 | J27: =IF(H27="","",IF(Reisek.!$A$3="U",H27,IF(AND(Reisek.!$A$3="A",(H27+H28)<=G27*(1+Reisek.!$C$45)),H27,""))) -> 
A28: =IF(Reisek.!A29<=0," ",Reisek.!A29) ->  | B28: =IF(OR(Reisek.!E29=0,Reisek.!G29=0),"",Reisek.!E29) ->  | C28: =IF(Reisek.!F29=0," ",Reisek.!F29) ->  | D28: =IF(Reisek.!G29=0," ",Reisek.!H29) ->  | F28: =IF(Reisek.!I29<=0," ",Reisek.!I29) ->  | G28: =IF(Reisek.!L29="",0,Reisek.!L29) -> 0 | J28: =IF(H28="","",IF(Reisek.!$A$3="U",H28,IF(AND(Reisek.!$A$3="A",(H27+H28)<=G27*(1+Reisek.!$C$45)),H28,""))) -> 
A29: =IF(Reisek.!A30<=0," ",Reisek.!A30) ->  | B29: =IF(OR(Reisek.!E30=0,Reisek.!G30=0),"",Reisek.!E30) ->  | C29: =IF(Reisek.!F30=0," ",Reisek.!F30) ->  | D29: =IF(Reisek.!G30=0," ",Reisek.!H30) ->  | F29: =IF(Reisek.!I30<=0," ",Reisek.!I30) ->  | G29: =IF(Reisek.!L30="",0,Reisek.!L30) -> 0 | J29: =IF(H29="","",IF(Reisek.!$A$3="U",H29,IF(AND(Reisek.!$A$3="A",(H29+H30)<=G29*(1+Reisek.!$C$45)),H29,""))) -> 
A30: =IF(Reisek.!A31<=0," ",Reisek.!A31) ->  | B30: =IF(OR(Reisek.!E31=0,Reisek.!G31=0),"",Reisek.!E31) ->  | C30: =IF(Reisek.!F31=0," ",Reisek.!F31) ->  | D30: =IF(Reisek.!G31=0," ",Reisek.!H31) ->  | F30: =IF(Reisek.!I31<=0," ",Reisek.!I31) ->  | G30: =IF(Reisek.!L31="",0,Reisek.!L31) -> 0 | J30: =IF(H30="","",IF(Reisek.!$A$3="U",H30,IF(AND(Reisek.!$A$3="A",(H29+H30)<=G29*(1+Reisek.!$C$45)),H30,""))) -> 
A31: =IF(Reisek.!A32<=0," ",Reisek.!A32) ->  | B31: =IF(OR(Reisek.!E32=0,Reisek.!G32=0),"",Reisek.!E32) ->  | C31: =IF(Reisek.!F32=0," ",Reisek.!F32) ->  | D31: =IF(Reisek.!G32=0," ",Reisek.!H32) ->  | F31: =IF(Reisek.!I32<=0," ",Reisek.!I32) ->  | G31: =IF(Reisek.!L32="",0,Reisek.!L32) -> 0 | J31: =IF(H31="","",IF(Reisek.!$A$3="U",H31,IF(AND(Reisek.!$A$3="A",(H31+H32)<=G31*(1+Reisek.!$C$45)),H31,""))) -> 
A32: =IF(Reisek.!A33<=0," ",Reisek.!A33) ->  | B32: =IF(OR(Reisek.!E33=0,Reisek.!G33=0),"",Reisek.!E33) ->  | C32: =IF(Reisek.!F33=0," ",Reisek.!F33) ->  | D32: =IF(Reisek.!G33=0," ",Reisek.!H33) ->  | F32: =IF(Reisek.!I33<=0," ",Reisek.!I33) ->  | G32: =IF(Reisek.!L33="",0,Reisek.!L33) -> 0 | J32: =IF(H32="","",IF(Reisek.!$A$3="U",H32,IF(AND(Reisek.!$A$3="A",(H31+H32)<=G31*(1+Reisek.!$C$45)),H32,""))) -> 
A33: =IF(Reisek.!A34<=0," ",Reisek.!A34) ->  | B33: =IF(OR(Reisek.!E34=0,Reisek.!G34=0),"",Reisek.!E34) ->  | C33: =IF(Reisek.!F34=0," ",Reisek.!F34) ->  | D33: =IF(Reisek.!G34=0," ",Reisek.!H34) ->  | F33: =IF(Reisek.!I34<=0," ",Reisek.!I34) ->  | G33: =IF(Reisek.!L34="",0,Reisek.!L34) -> 0 | J33: =IF(H33="","",IF(Reisek.!$A$3="U",H33,IF(AND(Reisek.!$A$3="A",(H33+H34)<=G33*(1+Reisek.!$C$45)),H33,""))) -> 
A34: =IF(Reisek.!A35<=0," ",Reisek.!A35) ->  | B34: =IF(OR(Reisek.!E35=0,Reisek.!G35=0),"",Reisek.!E35) ->  | C34: =IF(Reisek.!F35=0," ",Reisek.!F35) ->  | D34: =IF(Reisek.!G35=0," ",Reisek.!H35) ->  | F34: =IF(Reisek.!I35<=0," ",Reisek.!I35) ->  | G34: =IF(Reisek.!L35="",0,Reisek.!L35) -> 0 | J34: =IF(H34="","",IF(Reisek.!$A$3="U",H34,IF(AND(Reisek.!$A$3="A",(H33+H34)<=G33*(1+Reisek.!$C$45)),H34,""))) -> 
A35: =IF(Reisek.!A36<=0," ",Reisek.!A36) ->  | B35: =IF(OR(Reisek.!E36=0,Reisek.!G36=0),"",Reisek.!E36) ->  | C35: =IF(Reisek.!F36=0," ",Reisek.!F36) ->  | D35: =IF(Reisek.!G36=0," ",Reisek.!H36) ->  | F35: =IF(Reisek.!I36<=0," ",Reisek.!I36) ->  | G35: =IF(Reisek.!L36="",0,Reisek.!L36) -> 0 | J35: =IF(H35="","",IF(Reisek.!$A$3="U",H35,IF(AND(Reisek.!$A$3="A",(H35+H36)<=G35*(1+Reisek.!$C$45)),H35,""))) -> 
A36: =IF(Reisek.!A37<=0," ",Reisek.!A37) ->  | B36: =IF(OR(Reisek.!E37=0,Reisek.!G37=0),"",Reisek.!E37) ->  | C36: =IF(Reisek.!F37=0," ",Reisek.!F37) ->  | D36: =IF(Reisek.!G37=0," ",Reisek.!H37) ->  | F36: =IF(Reisek.!I37<=0," ",Reisek.!I37) ->  | G36: =IF(Reisek.!L37="",0,Reisek.!L37) -> 0 | J36: =IF(H36="","",IF(Reisek.!$A$3="U",H36,IF(AND(Reisek.!$A$3="A",(H35+H36)<=G35*(1+Reisek.!$C$45)),H36,""))) -> 
A37: =IF(Reisek.!A38<=0," ",Reisek.!A38) ->  | B37: =IF(OR(Reisek.!E38=0,Reisek.!G38=0),"",Reisek.!E38) ->  | C37: =IF(Reisek.!F38=0," ",Reisek.!F38) ->  | D37: =IF(Reisek.!G38=0," ",Reisek.!H38) ->  | F37: =IF(Reisek.!I38<=0," ",Reisek.!I38) ->  | G37: =IF(Reisek.!L38="",0,Reisek.!L38) -> 0 | J37: =IF(H37="","",IF(Reisek.!$A$3="U",H37,IF(AND(Reisek.!$A$3="A",(H37+H38)<=G37*(1+Reisek.!$C$45)),H37,""))) -> 
A38: =IF(Reisek.!A39<=0," ",Reisek.!A39) ->  | B38: =IF(OR(Reisek.!E39=0,Reisek.!G39=0),"",Reisek.!E39) ->  | C38: =IF(Reisek.!F39=0," ",Reisek.!F39) ->  | D38: =IF(Reisek.!G39=0," ",Reisek.!H39) ->  | F38: =IF(Reisek.!I39<=0," ",Reisek.!I39) ->  | G38: =IF(Reisek.!L39="",0,Reisek.!L39) -> 0 | J38: =IF(H38="","",IF(Reisek.!$A$3="U",H38,IF(AND(Reisek.!$A$3="A",(H37+H38)<=G37*(1+Reisek.!$C$45)),H38,""))) -> 
A39: =IF(Reisek.!A40<=0," ",Reisek.!A40) ->  | B39: =IF(OR(Reisek.!E40=0,Reisek.!G40=0),"",Reisek.!E40) ->  | C39: =IF(Reisek.!F40=0," ",Reisek.!F40) ->  | D39: =IF(Reisek.!G40=0," ",Reisek.!H40) ->  | F39: =IF(Reisek.!I40<=0," ",Reisek.!I40) ->  | G39: =IF(Reisek.!L40="",0,Reisek.!L40) -> 0 | J39: =IF(H39="","",IF(Reisek.!$A$3="U",H39,IF(AND(Reisek.!$A$3="A",(H39+H40)<=G39*(1+Reisek.!$C$45)),H39,""))) -> 
A40: =IF(Reisek.!A41<=0," ",Reisek.!A41) ->  | B40: =IF(OR(Reisek.!E41=0,Reisek.!G41=0),"",Reisek.!E41) ->  | C40: =IF(Reisek.!F41=0," ",Reisek.!F41) ->  | D40: =IF(Reisek.!G41=0," ",Reisek.!H41) ->  | F40: =IF(Reisek.!I41<=0," ",Reisek.!I41) ->  | G40: =IF(Reisek.!L41="",0,Reisek.!L41) -> 0 | J40: =IF(H40="","",IF(Reisek.!$A$3="U",H40,IF(AND(Reisek.!$A$3="A",(H39+H40)<=G39*(1+Reisek.!$C$45)),H40,""))) -> 
A41: =IF(Reisek.!A42<=0," ",Reisek.!A42) ->  | B41: =IF(OR(Reisek.!E42=0,Reisek.!G42=0),"",Reisek.!E42) ->  | C41: =IF(Reisek.!F42=0," ",Reisek.!F42) ->  | D41: =IF(Reisek.!G42=0," ",Reisek.!H42) ->  | F41: =IF(Reisek.!I42<=0," ",Reisek.!I42) ->  | G41: =IF(Reisek.!L42="",0,Reisek.!L42) -> 0 | J41: =IF(H41="","",IF(Reisek.!$A$3="U",H41,IF(AND(Reisek.!$A$3="A",(H41+H42)<=G41*(1+Reisek.!$C$45)),H41,""))) -> 
A42: =IF(Reisek.!A43<=0," ",Reisek.!A43) ->  | B42: =IF(OR(Reisek.!E43=0,Reisek.!G43=0),"",Reisek.!E43) ->  | C42: =IF(Reisek.!F43=0," ",Reisek.!F43) ->  | D42: =IF(Reisek.!G43=0," ",Reisek.!H43) ->  | F42: =IF(Reisek.!I43<=0," ",Reisek.!I43) ->  | G42: =IF(Reisek.!L43="",0,Reisek.!L43) -> 0 | J42: =IF(H42="","",IF(Reisek.!$A$3="U",H42,IF(AND(Reisek.!$A$3="A",(H41+H42)<=G41*(1+Reisek.!$C$45)),H42,""))) -> 
D43: =IF(Reisek.!H44=0," ",Reisek.!H44) ->  | G43: =SUM(G9:G42) -> 0 | K43: =SUM(K9:K42) -> 0
B44: =IF(Reisek.!C45<=0," ",Reisek.!C45) ->  | C44: Zuschlag bei Pauschalversteuerung | G44: =Reisek.!L45 -> 0
B45: =IF(Reisek.!C45<=0," ",Reisek.!C47) ->  | G45: =SUM(G43:G44) -> 0 | J45: Kontierung: | K45: ="1400 / "&RIGHT(Reisek.!L50,4) -> 1400 / 6664
A51: =Reisek.!A53 -> ..................... | C51: =Reisek.!D53 -> 2020-01-31
F53: (Unterschrift)

Sheet Städte
A1: Stadt | B1: Staat
A3: Accra | B3: Ghana
A4: Abuja | B4: =A4 -> Abuja
A5: Addis Abeba | B5: Äthiopien
A6: Aden | B6: Jemen
A7: Algier | B7: Algerien
A8: Alma-Ata | B8: Kasachstan
A9: Amman | B9: Jordanien
A10: Amsterdam | B10: Niederlande
A11: Andorra la Vella | B11: Andorra
A12: Ankara | B12: TR - Türkei
A13: Antananarivo | B13: Madagaskar
A14: Apia | B14: Samoa
A15: Aschchabad | B15: Turkmenistan
A16: Asmara | B16: Eritrea
A17: Asunción | B17: Paraguay
A18: Athen | B18: =A18 -> Athen
A19: Atlanta | B19: =A19 -> Atlanta
A20: Bagdad | B20: Irak
A21: Baku | B21: Aserbaidschan
A22: Bamako | B22: Mali
A23: Bangalore | B23: =A23 -> Bangalore
A24: Bangok | B24: Thailand
A25: Bangui | B25: Zentralafrikan.Republik
A26: Banjul | B26: Gambia
A27: Barcelona | B27: Barcelona
A28: Beirut | B28: Libanon
A29: Belgrad | B29: Jugoslawien
A30: Berlin
A31: Bern | B31: Bern
A32: Bischkek | B32: Kirgisistan
A33: Bissau | B33: Guinea-Bissau
A34: Blantyre | B34: Blantyre
A35: Bogotá | B35: Kolumbien
A36: Bordeaux | B36: F - Frankreich
A37: Boston | B37: =A37 -> Boston
A38: Brasilia | B38: Brasilia
A39: Bratislawa | B39: Slowakei
A40: Brazzaville | B40: Kongo
A41: Breslau | B41: Breslau
A42: Bridgetown | B42: Barbados
A43: Brüssel | B43: Belgien
A44: Budapest | B44: Ungarn
A45: Buenos Aires | B45: Argentinien
A46: Bujumbura | B46: Burundi
A47: Bukarest | B47: =A47 -> Bukarest
A48: Canberra | B48: Canberra
A49: Caracas | B49: Venezuela
A50: Chengdu | B50: Chengdu
A51: Chennai | B51: Chennai
A52: Chicago | B52: Chicago
A53: Chisinau | B53: Moldau, Republik
A54: Colombo | B54: Sri Lanka
A55: Conakry | B55: Guinea
A56: Daha | B56: Katar
A57: Dakar | B57: Senegal
A58: Damaskus | B58: Syrien, Arab.Repubik
A59: Danzig | B59: Danzig
A60: Dhaka (Dacca) | B60: Bangladesch
A61: Djidda | B61: Djidda
A62: Dodoma | B62: Tansania, Verein.Rep.
A63: Dschibuti-Stadt | B63: Dschibuti
A64: Dubai | B64: Dubai
A65: Dublin | B65: Irland
A66: Duschanbe | B66: Tadschikistan
A67: Edinburgh | B67: =A67 -> Edinburgh
A68: Freetown | B68: Sierra Leone
A69: Gaborone | B69: Botsuana
A70: Genf | B70: Genf
A71: Georgetown | B71: Guyana
A72: Guatemala-Stadt | B72: Guatemala
A73: Freetown | B73: Simbabwe
A74: Haute-Seine | B74: Haute-Seine
A75: Havanna | B75: Kuba
A76: Helsinki | B76: Finnland
A77: Ho-Chi-Min-Stadt | B77: Vietnam
A78: Hongkong | B78: =A78 -> Hongkong
A79: Houston | B79: =A79 -> Houston
A80: Islamabad | B80: =A80 -> Islamabad
A81: Istanbul | B81: Istanbul
A82: Izmir | B82: =A82 -> Izmir
A83: Jakarta | B83: Indonesien
A84: Jaunde | B84: Jaunde
A85: Jekatarinenburg | B85: Jekatarinenburg
A86: Jerevan (Eriwan) | B86: Armenien
A87: Jerusalem | B87: Israel
A88: Johannisburg | B88: Johannisburg
A89: Kabul | B89: Afghanistan
A90: Kairo | B90: Ägypten
A91: Kalkutta | B91: =A91 -> Kalkutta
A92: Kampala | B92: Uganda
A93: Kanton | B93: Kanton
A94: Kapstadt | B94: Kapstadt
A95: Katmandu | B95: Nepal
A96: Khartum | B96: Sudan
A97: Kiew | B97: Ukraine
A98: Kigali | B98: Ruanda
A99: Kingston | B99: Jamaika
A100: Kinshasa | B100: Kongo, Demokr. Rep.
A101: Kopenhagen | B101: =A101 -> Kopenhagen
A102: Krakau | B102: =A102 -> Krakau
A103: Kuala Lumpur | B103: Malaysia
A104: Kuwait-Stadt | B104: Kuwait
A105: Lagos | B105: =A105 -> Lagos
A106: La Paz | B106: Bolivien
A107: Libreville | B107: Gabun
A108: Lilongwe | B108: Malawi
A109: Lima | B109: Peru
A110: Lissabon | B110: =A110 -> Lissabon
A111: Ljublljana | B111: Slowenien
A112: Lome | B112: Togo
A113: London | B113: =A113 -> London
A114: Los Angeles | B114: =A114 -> Los Angeles
A115: Luanda | B115: Angola
A116: Lusaka | B116: Sambia
A117: Luxemburg | B117: Luxemburg
A118: Lyon | B118: Lyon
A119: Madrid | B119: =A119 -> Madrid
A120: Mailand | B120: =A120 -> Mailand
A121: Malabo | B121: Äquatorialguinea
A122: Malé | B122: Malediven
A123: Managua | B123: Nicaragua
A124: Manama | B124: Bahrain
A125: Manchester | B125: GB - Verein.Königreich
A126: Manila | B126: Philippinen
A127: Maputo | B127: Mosambik
A128: Marseille | B128: Marseille
A129: Maseru | B129: Lesotho
A130: Maskat | B130: Oman
A131: Mbabane | B131: Swasiland
A132: Melbourne | B132: Melbourne
A133: Mexiko-Stadt | B133: Mexiko
A134: Miami | B134: Miami
A135: Minsk | B135: Weißrußland
A136: Mogadischu | B136: Somalia
A137: Monaco-Ville | B137: Monaco
A138: Monrovia | B138: Liberia
A139: Montevideo | B139: Uruguay
A140: Moroni | B140: Komoren
A141: Moskau | B141: Moskau
A142: Mumbai | B142: Mumbai
A143: Nairobi | B143: Kenia
A144: Nassau | B144: Bahamas
A145: N'Djamena | B145: Tschad
A146: Neu Delhi | B146: Neu Delhi
A147: New York City | B147: New York City
A148: Niamey | B148: Niger
A149: Nicosia | B149: Zypern
A150: Nouakchott | B150: Mauretanien
A151: Nukualofa | B151: Tonga
A152: Oslo | B152: Norwegen
A153: Ottawa | B153: Ottawa
A154: Ouagadougou | B154: Burkina Faso
A155: Palma de Mallorca | B155: =A155 -> Palma de Mallorca
A156: Panama-Stadt | B156: Panama
A157: Paris | B157: Paris
A158: Peking | B158: Peking
A159: Phnom Penh | B159: Kambodscha
A160: Pjöngjang | B160: Korea, Demokr. VR
A161: Port Louis | B161: Mauritius
A162: Port Moresby | B162: Papua-Neuguinea
A163: Port of Spain | B163: Trinidad und Tobago
A164: Port-au-Prince | B164: Haiti
A165: Porto Novo | B165: Benin
A166: Prag | B166: Tschechische Rep.
A167: Praia | B167: Kap Verde
A168: Pretoria | B168: Südafrika
A169: Pristina | B169: Kosovo
A170: Quito | B170: Ecuador
A171: Rabat | B171: Marokko
A172: Reykjavík | B172: Island
A173: Riad | B173: Riad
A174: Riga | B174: Lettland
A175: Rio de Janeiro | B175: Rio de Janeiro
A176: Rom | B176: Rom
A177: San Francisco | B177: San Francisco
A178: San José | B178: Costa Rica
A179: San Marino | B179: San Marino
A180: San Salvador | B180: El Salvador
A181: Sana | B181: Jemen
A182: Santiago de Chile | B182: Chile
A183: Santo Domingo | B183: Dominikanische Rep.
A184: Sao Paulo | B184: Sao Paulo
A185: Sao Tomé | B185: Sao Tomé u. Principe
A186: Sarajevo | B186: Bosnien-Herzegowina
A187: Seattle | B187: USA - Verein. Staaten
A188: Seine-Saint Denis | B188: Seine-Saint Denis
A189: Seoul | B189: Korea, Republik
A190: Shanghai | B190: Shanghai
A191: Singapur | B191: Singapur
A192: Skopje | B192: Mazedonien
A193: Sofia | B193: Bulgarien
A194: St. Petersburg | B194: St. Petersburg
A195: Stockholm | B195: Schweden
A196: Straßburg | B196: Straßburg
A197: Suva | B197: Fidschi
A198: Sydney | B198: Sydney
A199: Taipeh | B199: (China) Taiwan
A200: Tallinn (Reval) | B200: Estland
A201: Taschkent | B201: Usbekistan
... 27 more rows

Sheet Staaten
A1: Dienst- und Geschäftsreisen | B1: mind. 24 Std. | C1: weniger als 24 Std. | D1: Tag vor oder nach | E1: Pauschbetrag für | F1: Kürzung für
A2: in das Ausland | C2: aber mehr als 8 Std. | D2: Übernachtung | E2: Übernachtungsk. | F2: Frühstück
B3: € | C3: =B3 -> € | D3: =B3 -> € | E3: =B3 -> € | F3: =B3 -> €
B4: =IF(Jahr>=2020,28,24) -> 28 | C4: =IF(Jahr>=2020,14,12) -> 14 | D4: 14 | E4: 0 | F4: =B4*-0.2 -> -5.6 | H4: (Unternehmer)
A5: Inland | B5: 28 | C5: 14 | D5: 14 | E5: 0 | F5: -5.6 | H5: (Unternehmer)
A6: Deutschland | B6: 28 | C6: 14 | D6: 14 | E6: 0 | F6: -5.6 | H6: (Unternehmer)
A7: Inland | B7: 28 | C7: 14 | D7: 14 | E7: 20 | F7: -5.6 | H7: (Arbeitnehmer)
A8: Deutschland | B8: 28 | C8: 14 | D8: 14 | E8: 20 | F8: -5.6 | H8: (Arbeitnehmer)
B9: 28 | C9: 14 | D9: 14 | E9: 20 | F9: -5.6 | H9: (Arbeitnehmer)
A10: nicht in Tabelle | B10: =VLOOKUP(I10,Staaten!$A$13:$D$336,2,0) -> 47 | C10: =ROUNDUP(B10/3*2,0) -> 32 | D10: =C10 -> 32 | E10: =VLOOKUP(I10,Staaten!$A$13:$E$336,5,0) -> 130 | F10: -9.4 | G10: ="(wie "&I10&")" -> (wie Luxemburg) | I10: Luxemburg
A11: Schiffsreise | B11: =VLOOKUP(I11,Staaten!$A$13:$D$336,2,0) -> 47 | C11: =ROUNDUP(B11/3*2,0) -> 32 | D11: 32 | E11: =VLOOKUP(I11,Staaten!$A$13:$E$336,5,0) -> 130 | F11: -9.4 | G11: ="(wie "&I11&")" -> (wie Luxemburg) | I11: Luxemburg
A12: Flugreise über 2 Tage | B12: =VLOOKUP(I12,Staaten!$A$13:$D$336,2,0) -> 40 | C12: =ROUNDUP(B12/3*2,0) -> 27 | D12: 27 | E12: =VLOOKUP(I12,Staaten!$A$13:$E$336,5,0) -> 108 | F12: -8 | G12: (wie A - Österreich) | I12: A - Österreich
A14: Afghanistan | B14: 30 | C14: =ROUND(B14/3*2,0) -> 20 | D14: =C14 -> 20 | E14: 95 | F14: =B14*-0.2 -> -6
A15: Ägypten | B15: =IF(Jahr>=2018,41,40) -> 41 | C15: =ROUNDUP(B15/3*2,0) -> 28 | D15: =C15 -> 28 | E15: =IF(Jahr>=2018,125,113) -> 125 | F15: =B15*-0.2 -> -8.2
A16: Äthiopien | B16: =IF(Jahr>=2020,39,IF(Jahr<2015,30,27)) -> 39 | C16: =ROUND(B16/3*2,0) -> 26 | D16: 26 | E16: =IF(Jahr>=2020,130,IF(Jahr<2015,175,86)) -> 130 | F16: =B16*-0.2 -> -7.8
A17: Äquatorialguinea | B17: =IF(Jahr<2016,50,36) -> 36 | C17: =ROUND(B17/3*2,0) -> 24 | D17: 24 | E17: =IF(Jahr<2016,226,166) -> 166 | F17: =B17*-0.2 -> -7.2
A18: Albanien | B18: =IF(Jahr<2016,23,29) -> 29 | C18: =ROUNDUP(B18/3*2,0) -> 20 | D18: 20 | E18: =IF(Jahr>=2017,113,IF(Jahr<2016,110,90)) -> 113 | F18: -5.8
A19: Algerien | B19: =IF(Jahr>=2017,51,39) -> 51 | C19: =ROUND(B19/3*2,0) -> 34 | D19: 34 | E19: =IF(Jahr>=2017,173,190) -> 173 | F19: -10.2
A20: Andorra | B20: =IF(Jahr<2016,32,34) -> 34 | C20: =ROUND(B20/3*2,0) -> 23 | D20: 23 | E20: =IF(Jahr<2016,82,45) -> 45 | F20: -6.8
A21: Angola | B21: =IF(Jahr>=2020,52,77) -> 52 | C21: =ROUNDUP(B21/3*2,0) -> 35 | D21: 35 | E21: =IF(Jahr>=2020,299,265) -> 299 | F21: -10.4
A22: Antigua und Barbuda | B22: =IF(Jahr>=2019,45,53) -> 45 | C22: =ROUNDUP(B22/3*2,0) -> 30 | D22: 30 | E22: =IF(Jahr>=2019,177,117) -> 177 | F22: -9
A23: Argentinien | B23: =IF(Jahr>=2020,35,IF(Jahr<2015,36,34)) -> 35 | C23: =ROUNDUP(B23/3*2,0) -> 24 | D23: 24 | E23: =IF(Jahr>=2020,113,IF(Jahr<2015,125,144)) -> 113 | F23: -7
A24: Armenien | B24: =IF(Jahr>=2020,24,IF(Jahr<2015,24,23)) -> 24 | C24: =ROUNDUP(B24/3*2,0) -> 16 | D24: 16 | E24: =IF(Jahr>=2020,59,IF(Jahr<2015,90,63)) -> 59 | F24: -4.8
A25: Aserbaidschan | B25: =IF(Jahr>=2017,30,40) -> 30 | C25: =ROUND(B25/3*2,0) -> 20 | D25: 20 | E25: =IF(Jahr>=2017,72,120) -> 72 | F25: -6
A26: AUS - Australien | B26: =IF(Jahr>=2018,51,56) -> 51 | C26: 34 | D26: 34 | E26: =IF(Jahr>=2018,158,133) -> 158 | F26: -10.2
A27: Canberra | B27: =IF(Jahr>=2018,51,58) -> 51 | C27: =ROUND(B27/3*2,0) -> 34 | D27: 34 | E27: 158 | F27: =B27*-0.2 -> -10.2 | G27: Australien
A28: Melbourne | B28: =IF(Jahr>=2018,51,56) -> 51 | C28: 34 | D28: 34 | E28: =IF(Jahr>=2018,158,133) -> 158 | F28: -10.2 | G28: Australien
A29: Sydney | B29: =IF(Jahr>=2018,68,59) -> 68 | C29: =ROUND(B29/3*2,0) -> 45 | D29: 45 | E29: =IF(Jahr>=2018,184,186) -> 184 | F29: -13.6 | G29: Australien
A30: Bahrain | B30: =IF(Jahr<2016,36,45) -> 45 | C30: 30 | D30: 30 | E30: =IF(Jahr<2016,70,180) -> 180 | F30: -9
A31: Bangladesch | B31: =IF(Jahr>=2020,50,30) -> 50 | C31: 33 | D31: 33 | E31: =IF(Jahr>=2020,165,111) -> 165 | F31: -10
A32: Barbados | B32: =IF(Jahr>=2019,52,58) -> 52 | C32: 35 | D32: 35 | E32: =IF(Jahr>=2019,165,179) -> 165 | F32: -10.4
A33: Belgien | B33: =IF(Jahr>=2018,42,41) -> 42 | C33: =ROUNDUP(B33/3*2,0) -> 28 | D33: 28 | E33: 135 | F33: -8.4
A34: Benin | B34: =IF(Jahr>=2020,52,40) -> 52 | C34: =ROUNDUP(B34/3*2,0) -> 35 | D34: 35 | E34: =IF(Jahr>=2020,115,101) -> 115 | F34: -10.4
A35: Bolivien | B35: =IF(Jahr>=2017,30,24) -> 30 | C35: 20 | D35: 20 | E35: =IF(Jahr>=2017,93,70) -> 93 | F35: -6
A36: Bosnien-Herzegowina | B36: =IF(Jahr>=2020,23,18) -> 23 | C36: =ROUNDUP(B36/3*2,0) -> 16 | D36: 16 | E36: =IF(Jahr>=2020,75,73) -> 75 | F36: -4.6
A37: Botsuana | B37: =IF(Jahr<2016,33,40) -> 40 | C37: 27 | D37: 27 | E37: =IF(Jahr<2016,105,102) -> 102 | F37: -8
A38: BR - Brasilien | B38: =IF(Jahr>=2018,51,54) -> 51 | C38: 34 | D38: 34 | E38: =IF(Jahr>=2018,84,110) -> 84 | F38: =B38*-0.2 -> -10.2
A39: Brasilia | B39: =IF(Jahr>=2018,57,53) -> 57 | C39: =IF(Jahr<2012,ROUND(B39/3*2,0),ROUNDUP(B39/3*2,0)) -> 38 | D39: 38 | E39: =IF(Jahr>=2018,127,160) -> 127 | F39: =B39*-0.2 -> -11.4 | G39: Brasilien
A40: Rio de Janeiro | B40: =IF(Jahr>=2018,57,47) -> 57 | C40: =ROUNDUP(B40/3*2,0) -> 38 | D40: 38 | E40: 145 | F40: -11.4 | G40: Brasilien
A41: Sao Paulo | B41: 53 | C41: =IF(Jahr<2012,ROUND(B41/3*2,0),ROUNDUP(B41/3*2,0)) -> 36 | D41: 36 | E41: =IF(Jahr>=2018,132,120) -> 132 | F41: -10.6 | G41: Brasilien
A42: Brunei | B42: =IF(Jahr>=2020,52,48) -> 52 | C42: 35 | D42: 35 | E42: 106 | F42: -10.4
A43: Bulgarien | B43: 22 | C43: 15 | D43: 15 | E43: =IF(Jahr<2015,72,90) -> 90 | F43: -4.4
A44: Burkina Faso | B44: =IF(Jahr>=2020,38,44) -> 38 | C44: 25 | D44: 25 | E44: =IF(Jahr>=2020,174,84) -> 174 | F44: -7.6
A45: Burma | B45: 39 | C45: 26 | D45: 26 | E45: 75 | F45: -7.8 | G45: Myanmar (Burma)
A46: Burundi | B46: 47 | C46: =ROUNDUP(B46/3*2,0) -> 32 | D46: 32 | E46: 98 | F46: -9.4
A47: Chile | B47: =IF(Jahr>=2018,44,40) -> 44 | C47: 29 | D47: 29 | E47: =IF(Jahr>=2018,187,130) -> 187 | F47: -8.8
A48: RC - China | B48: =IF(Jahr>=2017,50,IF(Jahr<2015,33,40)) -> 50 | C48: 33 | D48: 33 | E48: =IF(Jahr>=2017,78,IF(Jahr<2015,80,113)) -> 78 | F48: =B48*-0.2 -> -10
A49: Chengdu | B49: =IF(Jahr<2016,32,35) -> 35 | C49: =IF(Jahr<2016,ROUND(B49/3*2,0),ROUNDUP(B49/3*2,0)) -> 24 | D49: 24 | E49: =IF(Jahr<2016,85,105) -> 105 | F49: =B49*-0.2 -> -7 | G49: China
A50: Hongkong | B50: =IF(Jahr<2016,62,74) -> 74 | C50: 49 | D50: 49 | E50: =IF(Jahr<2016,170,145) -> 145 | F50: =B50*-0.2 -> -14.8 | G50: China
A51: Kanton | B51: =IF(Jahr>=2017,40,IF(Jahr<2015,33,40)) -> 40 | C51: =ROUND(B51/3*2,0) -> 27 | D51: =C51 -> 27 | E51: =IF(Jahr>=2017,113,IF(Jahr<2015,80,113)) -> 113 | F51: =B51*-0.2 -> -8 | G51: China
A52: Peking | B52: =IF(Jahr<2016,39,46) -> 46 | C52: 31 | D52: 31 | E52: =IF(Jahr<2016,115,142) -> 142 | F52: -9.2 | G52: China
A53: Shanghai | B53: =IF(Jahr<2016,42,50) -> 50 | C53: 33 | D53: 33 | E53: =IF(Jahr<2016,140,128) -> 128 | F53: -10 | G53: China
A54: (China) Taiwan | B54: =IF(Jahr>=2017,51,39) -> 51 | C54: 34 | D54: 34 | E54: =IF(Jahr>=2017,126,110) -> 126 | F54: -10.2
A55: Costa Rica | B55: =IF(Jahr>=2019,47,46) -> 47 | C55: =ROUNDUP(B55/3*2,0) -> 32 | D55: 32 | E55: =IF(Jahr>=2017,93,69) -> 93 | F55: -9.4
A56: Côte d'Ivoire | B56: =IF(Jahr<2015,54,51) -> 51 | C56: 34 | D56: 34 | E56: =IF(Jahr<2015,145,146) -> 146 | F56: -10.2
A57: DK - Dänemark | B57: =IF(Jahr>=2018,58,60) -> 58 | C57: 39 | D57: 39 | E57: =IF(Jahr>=2018,143,150) -> 143 | F57: =B57*-0.2 -> -11.6
A58: Kopenhagen | B58: =IF(Jahr>=2018,58,60) -> 58 | C58: 39 | D58: 39 | E58: =IF(Jahr>=2018,143,150) -> 143 | F58: -11.6 | G58: Dänemark
A59: Dominica | B59: =IF(Jahr>=2019,45,40) -> 45 | C59: 30 | D59: 30 | E59: =IF(Jahr>=2019,177,94) -> 177 | F59: -9
A60: Dominikanische Rep. | B60: =IF(Jahr>=2018,45,40) -> 45 | C60: 30 | D60: 30 | E60: =IF(Jahr>=2018,147,71) -> 147 | F60: -9
A61: Dschibuti | B61: =IF(Jahr>=2018,65,48) -> 65 | C61: =ROUNDUP(B61/3*2,0) -> 44 | D61: 44 | E61: =IF(Jahr>=2018,305,160) -> 305 | F61: -13
A62: Ecuador | B62: =IF(Jahr>=2017,44,39) -> 44 | C62: 29 | D62: 29 | E62: =IF(Jahr>=2017,97,55) -> 97 | F62: -8.8
A63: El Salvador | B63: =IF(Jahr<2016,46,44) -> 44 | C63: 29 | D63: 29 | E63: =IF(Jahr<2016,75,119) -> 119 | F63: -8.8
A64: Eritrea | B64: =IF(Jahr>=2019,50,46) -> 50 | C64: 33 | D64: 33 | E64: =IF(Jahr>=2019,91,81) -> 91 | F64: -10
A65: Estland | B65: =IF(Jahr>=2020,29,27) -> 29 | C65: =ROUNDUP(B65/3*2,0) -> 20 | D65: 20 | E65: =IF(Jahr>=2020,85,71) -> 85 | F65: -5.8
A66: Fidschi | B66: =IF(Jahr>=2017,34,32) -> 34 | C66: 23 | D66: 23 | E66: =IF(Jahr>=2017,69,57) -> 69 | F66: -6.8
A67: Finnland | B67: =IF(Jahr>=2018,50,39) -> 50 | C67: 33 | D67: 33 | E67: 136 | F67: -10
A68: F - Frankreich | B68: 44 | C68: 29 | D68: 29 | E68: =IF(Jahr>=2018,115,81) -> 115 | F68: =B68*-0.2 -> -8.8
A69: Paris | B69: 58 | C69: 39 | D69: 39 | E69: 135 | F69: -11.6 | G69: Frankreich
A70: Haute-Seine | B70: 58 | C70: =ROUND(B70/3*2,0) -> 39 | D70: 39 | E70: 135 | F70: -11.6 | G70: Frankreich
A71: Seine-Saint-Denis | B71: 58 | C71: 39 | D71: 39 | E71: 135 | F71: -11.6 | G71: Frankreich
A72: Val-de-Marne | B72: 58 | C72: 39 | D72: 39 | E72: 135 | F72: -11.6 | G72: Frankreich
A73: Lyon | B73: =IF(Jahr>=2018,44,53) -> 44 | C73: =ROUNDUP(B73/3*2,0) -> 30 | D73: 30 | E73: =IF(Jahr>=2018,115,83) -> 115 | F73: =B73*-0.2 -> -8.8 | G73: Frankreich
A74: Marseille | B74: =IF(Jahr>=2018,46,51) -> 46 | C74: =ROUND(B74/3*2,0) -> 31 | D74: 31 | E74: =IF(Jahr>=2018,101,86) -> 101 | F74: =B74*-0.2 -> -9.2 | G74: Frankreich
A75: Straßburg | B75: =IF(Jahr>=2018,51,48) -> 51 | C75: 34 | D75: 34 | E75: =IF(Jahr>=2018,96,89) -> 96 | F75: -10.2 | G75: Frankreich
A76: Gabun | B76: =IF(Jahr>=2020,52,62) -> 52 | C76: 35 | D76: 35 | E76: =IF(Jahr>=2020,183,278) -> 183 | F76: -10.4
A77: Gambia | B77: =IF(Jahr<2016,18,30) -> 30 | C77: 20 | D77: 20 | E77: =IF(Jahr<2016,70,125) -> 125 | F77: -6
A78: Georgien | B78: =IF(Jahr>=2018,35,30) -> 35 | C78: =ROUNDUP(B78/3*2,0) -> 24 | D78: 24 | E78: =IF(Jahr>=2018,88,80) -> 88 | F78: -7
A79: Ghana | B79: 46 | C79: 31 | D79: 31 | E79: =IF(Jahr>=2019,148,174) -> 148 | F79: -9.2
A80: Grenada | B80: =IF(Jahr>=2019,45,51) -> 45 | C80: =ROUND(B80/3*2,0) -> 30 | D80: =C80 -> 30 | E80: =IF(Jahr>=2019,177,121) -> 177 | F80: =B80*-0.2 -> -9
A81: GR - Griechenland | B81: =IF(Jahr>=2017,36,42) -> 36 | C81: 24 | D81: 24 | E81: =IF(Jahr>=2019,135,89) -> 135 | F81: -7.2
A82: Athen | B82: =IF(Jahr>=2017,46,57) -> 46 | C82: 31 | D82: 31 | E82: =IF(Jahr>=2017,132,125) -> 132 | F82: -9.2 | G82: Griechenland
A83: Guatemala | B83: =IF(Jahr>=2019,34,28) -> 34 | C83: 23 | D83: 23 | E83: =IF(Jahr>=2019,90,96) -> 90 | F83: -6.8
A84: Guinea | B84: =IF(Jahr>=2018,46,38) -> 46 | C84: 31 | D84: 31 | E84: =IF(Jahr>=2018,118,110) -> 118 | F84: -9.2
A85: Guinea-Bissau | B85: =IF(Jahr<2016,38,24) -> 24 | C85: 16 | D85: 16 | E85: =IF(Jahr<2016,110,86) -> 86 | F85: -4.8
A86: Guyana | B86: =IF(Jahr>=2019,45,41) -> 45 | C86: =ROUNDUP(B86/3*2,0) -> 30 | D86: 30 | E86: =IF(Jahr>=2019,177,81) -> 177 | F86: -9
A87: Haiti | B87: =IF(Jahr>=2018,58,50) -> 58 | C87: 39 | D87: 39 | E87: =IF(Jahr>=2018,130,111) -> 130 | F87: -11.6
A88: Honduras | B88: =IF(Jahr>=2017,48,IF(Jahr<2015,35,44)) -> 48 | C88: =IF(Jahr<2015,ROUNDUP(B88/3*2,0),ROUND(B88/3*2,0)) -> 32 | D88: 32 | E88: =IF(Jahr>=2017,101,IF(Jahr<2015,115,104)) -> 101 | F88: -9.6
A89: IND - Indien | B89: =IF(Jahr>=2019,32,34) -> 32 | C89: 21 | D89: 21 | E89: =IF(Jahr>=2019,85,145) -> 85 | F89: =B89*-0.2 -> -6.4
A90: Bangalore | B90: =IF(Jahr>=2020,42,IF(Jahr>=2019,32,34)) -> 42 | C90: 28 | D90: 28 | E90: =IF(Jahr>=2020,155,IF(Jahr>=2019,85,145)) -> 155 | F90: =B90*-0.2 -> -8.4 | G90: Indien
A91: Chennai | B91: =IF(Jahr>=2019,32,34) -> 32 | C91: 21 | D91: 21 | E91: =IF(Jahr>=2019,85,87) -> 85 | F91: =B91*-0.2 -> -6.4 | G91: Indien
A92: Kalkutta | B92: =IF(Jahr>=2019,35,41) -> 35 | C92: =IF(Jahr<2016,ROUND(B92/3*2,0),ROUNDUP(B92/3*2,0)) -> 24 | D92: 24 | E92: =IF(Jahr>=2019,145,117) -> 145 | F92: -7 | G92: Indien
A93: Mumbai | B93: =IF(Jahr>=2019,50,32) -> 50 | C93: =IF(Jahr<2016,ROUNDUP(B93/3*2,0),ROUND(B93/3*2,0)) -> 33 | D93: 33 | E93: =IF(Jahr>=2019,146,125) -> 146 | F93: -10 | G93: Indien
A94: Neu Delhi | B94: =IF(Jahr>=2019,38,50) -> 38 | C94: 25 | D94: 25 | E94: =IF(Jahr>=2019,185,144) -> 185 | F94: -7.6 | G94: Indien
A95: Indonesien | B95: =IF(Jahr>=2020,36,38) -> 36 | C95: =ROUND(B95/3*2,0) -> 24 | D95: 24 | E95: =IF(Jahr>=2020,134,130) -> 134 | F95: -7.2
A96: Iran | B96: =IF(Jahr>=2018,33,28) -> 33 | C96: =ROUND(B96/3*2,0) -> 22 | D96: 22 | E96: =IF(Jahr>=2018,196,84) -> 196 | F96: =B96*-0.2 -> -6.6
A97: Irland | B97: =IF(Jahr<2016,42,44) -> 44 | C97: 29 | D97: 29 | E97: =IF(Jahr<2016,90,92) -> 92 | F97: -8.8
A98: Island | B98: =IF(Jahr<2015,53,47) -> 47 | C98: =ROUNDUP(B98/3*2,0) -> 32 | D98: 32 | E98: =IF(Jahr<2015,105,108) -> 108 | F98: -9.4
A99: IL - Israel | B99: =IF(Jahr>=2020,66,56) -> 66 | C99: =IF(Jahr<2016,ROUNDUP(B99/3*2,0),ROUND(B99/3*2,0)) -> 44 | D99: 44 | E99: =IF(Jahr>=2020,190,191) -> 190 | F99: -13.2
A100: Tel Aviv | B100: =IF(Jahr>=2020,66,56) -> 66 | C100: =IF(Jahr<2016,ROUNDUP(B100/3*2,0),ROUND(B100/3*2,0)) -> 44 | D100: 44 | E100: =IF(Jahr>=2020,190,191) -> 190 | F100: -13.2 | G100: Israel
A101: I - Italien | B101: =IF(Jahr>=2019,40,34) -> 40 | C101: 27 | D101: 27 | E101: =IF(Jahr>=2019,135,126) -> 135 | F101: =B101*-0.2 -> -8
A102: Mailand | B102: =IF(Jahr>=2019,45,39) -> 45 | C102: 30 | D102: 30 | E102: =IF(Jahr>=2019,158,156) -> 158 | F102: -9 | G102: Italien
A103: Rom | B103: =IF(Jahr>=2019,40,52) -> 40 | C103: 27 | D103: 27 | E103: =IF(Jahr>=2019,135,160) -> 135 | F103: -8 | G103: Italien
A104: Jamaika | B104: =IF(Jahr>=2019,57,54) -> 57 | C104: 38 | D104: 38 | E104: =IF(Jahr>=2019,138,135) -> 138 | F104: -11.4
A105: J - Japan | B105: =IF(Jahr>=2020,52,51) -> 52 | C105: 35 | D105: 35 | E105: =IF(Jahr>=2020,190,156) -> 190 | F105: =B105*-0.2 -> -10.4
A106: Tokio | B106: =IF(Jahr>=2018,66,53) -> 66 | C106: =ROUNDUP(B106/3*2,0) -> 44 | D106: 44 | E106: =IF(Jahr>=2018,233,153) -> 233 | F106: -13.2 | G106: Japan
A107: Jemen | B107: 24 | C107: 16 | D107: 16 | E107: 95 | F107: -4.8
A108: Jordanien | B108: =IF(Jahr>=2017,46,36) -> 46 | C108: 31 | D108: 31 | E108: =IF(Jahr>=2017,126,85) -> 126 | F108: -9.2
A109: Kambodscha | B109: =IF(Jahr>=2019,38,39) -> 38 | C109: 25 | D109: 25 | E109: =IF(Jahr>=2017,94,85) -> 94 | F109: -7.6
A110: CAM - Kamerun | B110: =IF(Jahr>=2017,50,40) -> 50 | C110: =ROUND(B110/3*2,0) -> 33 | D110: 33 | E110: =IF(Jahr>=2017,180,130) -> 180 | F110: -10
A111: Jaunde | B111: =IF(Jahr>=2017,50,40) -> 50 | C111: =ROUNDUP(B111/3*2,0) -> 34 | D111: 34 | E111: =IF(Jahr>=2017,180,130) -> 180 | F111: -10 | G111: Kamerun
A112: CDN - Kanada | B112: =IF(Jahr>=2018,47,44) -> 47 | C112: 31 | D112: 31 | E112: =IF(Jahr>=2018,134,111) -> 134 | F112: -9.4
A113: Ottawa | B113: =IF(Jahr>=2018,47,35) -> 47 | C113: =IF(Jahr<2016,ROUND(B113/3*2,0),ROUNDUP(B113/3*2,0)) -> 32 | D113: 32 | E113: =IF(Jahr>=2018,142,110) -> 142 | F113: -9.4 | G113: Kanada
A114: Toronto | B114: =IF(Jahr>=2018,51,52) -> 51 | C114: =ROUNDUP(B114/3*2,0) -> 34 | D114: 34 | E114: =IF(Jahr>=2018,161,142) -> 161 | F114: -10.2 | G114: Kanada
A115: Vancouver | B115: =IF(Jahr>=2018,50,48) -> 50 | C115: 33 | D115: 33 | E115: =IF(Jahr>=2018,140,106) -> 140 | F115: -10 | G115: Kanada
A116: Kap Verde | B116: 30 | C116: 20 | D116: 20 | E116: 55 | F116: -6
A117: Kasachstan | B117: =IF(Jahr>=2019,45,39) -> 45 | C117: 30 | D117: 30 | E117: =IF(Jahr>=2019,111,109) -> 111 | F117: -9
A118: Katar | B118: 56 | C118: 37 | D118: 37 | E118: =IF(Jahr>=2020,149,170) -> 149 | F118: -11.2
A119: Kenia | B119: =IF(Jahr<2016,35,42) -> 42 | C119: =ROUNDUP(B119/3*2,0) -> 28 | D119: 28 | E119: =IF(Jahr<2016,135,223) -> 223 | F119: -8.4
A120: Kirgisistan | B120: =IF(Jahr>=2020,27,29) -> 27 | C120: =ROUNDUP(B120/3*2,0) -> 18 | D120: 18 | E120: =IF(Jahr>=2020,74,91) -> 74 | F120: -5.4
A121: Kolumbien | B121: =IF(Jahr>=2020,46,41) -> 46 | C121: =ROUNDUP(B121/3*2,0) -> 31 | D121: 31 | E121: =IF(Jahr>=2020,115,126) -> 115 | F121: -9.2
A122: Kongo, Republik | B122: =IF(Jahr<2016,57,50) -> 50 | C122: 33 | D122: 33 | E122: =IF(Jahr<2016,113,200) -> 200 | F122: -10
A123: Kongo, Demokratische Rep. (früher: Zaire) | B123: =IF(Jahr>=2020,70,68) -> 70 | C123: 47 | D123: 47 | E123: =IF(Jahr>=2020,190,171) -> 190 | F123: -14
A124: Kongo, Demokratische Republik | B124: =IF(Jahr>=2020,70,68) -> 70 | C124: 47 | D124: 47 | E124: =IF(Jahr>=2020,190,171) -> 190 | F124: =B124*-0.2 -> -14 | G124: (früher Zaire)
A125: Korea, Demokratische Volksrepublik | B125: =IF(Jahr>=2020,28,39) -> 28 | C125: 19 | D125: 19 | E125: =IF(Jahr>=2020,92,132) -> 92 | F125: -5.6 | G125: (Nord-Korea)
A126: Korea, Republik | B126: =IF(Jahr<2016,66,58) -> 58 | C126: 39 | D126: 39 | E126: =IF(Jahr<2016,180,112) -> 112 | F126: -11.6 | G126: (Süd-Korea)
A127: Kosovo | B127: =IF(Jahr>=2017,23,26) -> 23 | C127: =IF(Jahr>=2017,ROUNDUP(B127/3*2,0),ROUND(B127/3*2,0)) -> 16 | D127: 16 | E127: =IF(Jahr>=2017,57,65) -> 57 | F127: -4.6
A128: Kroatien | B128: =IF(Jahr>=2020,35,28) -> 35 | C128: =ROUNDUP(B128/3*2,0) -> 24 | D128: 24 | E128: =IF(Jahr>=2020,107,75) -> 107 | F128: -7
A129: Kuba | B129: =IF(Jahr>=2018,46,50) -> 46 | C129: 31 | D129: 31 | E129: =IF(Jahr>=2018,228,85) -> 228 | F129: -9.2
A130: Kuwait | B130: 42 | C130: 28 | D130: 28 | E130: =IF(Jahr<2016,130,185) -> 185 | F130: -8.4
A131: Laos | B131: 33 | C131: 22 | D131: 22 | E131: =IF(Jahr>=2018,96,67) -> 96 | F131: =B131*-0.2 -> -6.6 | G131: Demokratische VR Laos
A132: Lesotho | B132: 24 | C132: 16 | D132: 16 | E132: =IF(Jahr<2016,70,103) -> 103 | F132: -4.8
A133: Lettland | B133: =IF(Jahr>=2020,35,30) -> 35 | C133: =ROUNDUP(B133/3*2,0) -> 24 | D133: 24 | E133: =IF(Jahr>=2020,76,80) -> 76 | F133: -7
A134: Libanon | B134: =IF(Jahr>=2019,59,44) -> 59 | C134: =IF(Jahr>=2019,ROUNDUP(B134/3*2,0),ROUND(B134/3*2,0)) -> 40 | D134: 40 | E134: =IF(Jahr>=2019,123,120) -> 123 | F134: -11.8
A135: Libyen | B135: =IF(Jahr>=2019,63,45) -> 63 | C135: 42 | D135: 42 | E135: =IF(Jahr>=2019,135,100) -> 135 | F135: =B135*-0.2 -> -12.6 | G135: Libysch-Arab.Dsch.
A136: Liechtenstein | B136: =IF(Jahr<2016,47,53) -> 53 | C136: =ROUNDUP(B136/3*2,0) -> 36 | D136: 36 | E136: =IF(Jahr<2016,82,180) -> 180 | F136: -10.6
A137: Litauen | B137: =IF(Jahr>=2020,26,24) -> 26 | C137: 17 | D137: 17 | E137: =IF(Jahr>=2020,109,68) -> 109 | F137: -5.2
A138: Luxemburg | B138: 47 | C138: =ROUNDUP(B138/3*2,0) -> 32 | D138: 32 | E138: =IF(Jahr>=2018,130,102) -> 130 | F138: -9.4
A139: Madagaskar | B139: =IF(Jahr>=2018,34,38) -> 34 | C139: =ROUND(B139/3*2,0) -> 23 | D139: 23 | E139: =IF(Jahr>=2018,87,83) -> 87 | F139: -6.8
A140: MW - Malawi | B140: =IF(Jahr<2016,39,47) -> 47 | C140: =IF(Jahr<2016,ROUND(B140/3*2,0),ROUNDUP(B140/3*2,0)) -> 32 | D140: 32 | E140: =IF(Jahr<2016,110,123) -> 123 | F140: -9.4
A141: Blantyre | B141: =IF(Jahr<2016,39,47) -> 47 | C141: =IF(Jahr<2016,ROUND(B141/3*2,0),ROUNDUP(B141/3*2,0)) -> 32 | D141: 32 | E141: =IF(Jahr<2016,110,123) -> 123 | F141: =B141*-0.2 -> -9.4 | G141: Malawi
A142: Malaysia | B142: =IF(Jahr>=2017,34,36) -> 34 | C142: 23 | D142: =C142 -> 23 | E142: =IF(Jahr>=2017,88,100) -> 88 | F142: -6.8
A143: Malediven | B143: =IF(Jahr>=2018,52,38) -> 52 | C143: 35 | D143: 35 | E143: =IF(Jahr>=2018,170,93) -> 170 | F143: -10.4
A144: Mali | B144: =IF(Jahr>=2020,38,41) -> 38 | C144: =IF(Jahr>=2020,ROUND(B144/3*2,0),ROUNDUP(B144/3*2,0)) -> 25 | D144: 25 | E144: =IF(Jahr>=2020,120,122) -> 120 | F144: -7.6
A145: Malta | B145: =IF(Jahr>=2020,46,45) -> 46 | C145: 31 | D145: 31 | E145: =IF(Jahr>=2020,114,112) -> 114 | F145: -9.2
A146: Marokko | B146: 42 | C146: 28 | D146: 28 | E146: =IF(Jahr>=2017,129,105) -> 129 | F146: -8.4
A147: Marshall Inseln | B147: 63 | C147: 42 | D147: 42 | E147: =IF(Jahr>=2019,102,70) -> 102 | F147: -12.6
A148: Mauretanien | B148: =IF(Jahr<2016,48,39) -> 39 | C148: 26 | D148: 26 | E148: =IF(Jahr<2016,89,105) -> 105 | F148: -7.8
A149: Mauritius | B149: =IF(Jahr>=2018,54,48) -> 54 | C149: 36 | D149: 36 | E149: =IF(Jahr>=2018,220,140) -> 220 | F149: -10.8
A150: Mazedonien | B150: =IF(Jahr>=2018,29,24) -> 29 | C150: =ROUNDUP(B150/3*2,0) -> 20 | D150: 20 | E150: 95 | F150: -5.8
A151: Mexiko | B151: =IF(Jahr>=2020,48,41) -> 48 | C151: =ROUNDUP(B151/3*2,0) -> 32 | D151: 32 | E151: =IF(Jahr>=2020,177,141) -> 177 | F151: -9.6
A152: Mikronesien | B152: =IF(Jahr>=2019,33,56) -> 33 | C152: 22 | D152: 22 | E152: =IF(Jahr>=2019,116,74) -> 116 | F152: -6.6
A153: Moldau, Republik | B153: =IF(Jahr>=2017,24,18) -> 24 | C153: 16 | D153: 16 | E153: =IF(Jahr>=2017,88,100) -> 88 | F153: -4.8
A154: Monaco | B154: =IF(Jahr>=2017,42,41) -> 42 | C154: =ROUNDUP(B154/3*2,0) -> 28 | D154: 28 | E154: =IF(Jahr>=2017,180,52) -> 180 | F154: -8.4
A155: Mongolei | B155: =IF(Jahr>=2018,27,29) -> 27 | C155: =ROUNDUP(B155/3*2,0) -> 18 | D155: 18 | E155: =IF(Jahr>=2018,92,84) -> 92 | F155: -5.4
A156: Montenegro | B156: 29 | C156: 20 | D156: 20 | E156: =IF(Jahr>=2017,94,95) -> 94 | F156: =B156*-0.2 -> -5.8
A157: Mosambik | B157: =IF(Jahr>=2019,38,42) -> 38 | C157: 25 | D157: 25 | E157: =IF(Jahr>=2019,146,147) -> 146 | F157: -7.6
A158: Myanmar (Burma) | B158: =IF(Jahr>=2017,35,46) -> 35 | C158: =IF(Jahr>=2017,ROUNDUP(B158/3*2,0),ROUND(B158/3*2,0)) -> 24 | D158: 24 | E158: =IF(Jahr>=2017,155,45) -> 155 | F158: -7
A159: Namibia | B159: =IF(Jahr>=2020,30,23) -> 30 | C159: =ROUNDUP(B159/3*2,0) -> 20 | D159: 20 | E159: =IF(Jahr>=2020,112,77) -> 112 | F159: -6
A160: Nepal | B160: =IF(Jahr<2015,32,28) -> 28 | C160: =ROUND(B160/3*2,0) -> 19 | D160: 19 | E160: =IF(Jahr<2015,72,86) -> 86 | F160: -5.6
A161: Neuseeland | B161: =IF(Jahr>=2018,56,47) -> 56 | C161: =ROUNDDOWN(B161/3*2,0) -> 37 | D161: 37 | E161: =IF(Jahr>=2018,153,98) -> 153 | F161: -11.2
A162: Nicaragua | B162: =IF(Jahr<2016,30,36) -> 36 | C162: 24 | D162: 24 | E162: =IF(Jahr<2016,100,81) -> 81 | F162: -7.2
A163: Niederlande | B163: =IF(Jahr>=2020,47,46) -> 47 | C163: =ROUNDUP(B163/3*2,0) -> 32 | D163: 32 | E163: =IF(Jahr>=2020,122,119) -> 122 | F163: -9.4
A164: Niger | B164: =IF(Jahr>=2018,41,36) -> 41 | C164: =ROUNDUP(B164/3*2,0) -> 28 | D164: 28 | E164: =IF(Jahr>=2018,89,70) -> 89 | F164: -8.2
A165: WAN - Nigeria | B165: =IF(Jahr>=2020,46,63) -> 46 | C165: 31 | D165: 31 | E165: =IF(Jahr>=2020,182,255) -> 182 | F165: =B165*-0.2 -> -9.2
A166: Abuja | B166: =IF(Jahr>=2020,46,63) -> 46 | C166: =ROUND(B166/3*2,0) -> 31 | D166: =C166 -> 31 | E166: =IF(Jahr>=2020,182,255) -> 182 | F166: =B166*-0.2 -> -9.2 | G166: Nigeria
A167: Lagos | B167: =IF(Jahr>=2020,46,63) -> 46 | C167: 31 | D167: 31 | E167: =IF(Jahr>=2020,182,255) -> 182 | F167: -9.2 | G167: Nigeria
A168: Norwegen | B168: =IF(Jahr>=2018,80,64) -> 80 | C168: 53 | D168: 53 | E168: 182 | F168: =B168*-0.2 -> -16
A169: A - Österreich | B169: =IF(Jahr>=2019,40,36) -> 40 | C169: =ROUNDUP(B169/3*2,0) -> 27 | D169: 27 | E169: =IF(Jahr>=2019,108,104) -> 108 | F169: -8
A170: Wien | B170: =IF(Jahr>=2019,40,36) -> 40 | C170: =ROUNDUP(B170/3*2,0) -> 27 | D170: 27 | E170: =IF(Jahr>=2019,108,104) -> 108 | F170: -8 | G170: Österreich
A171: Oman | B171: =IF(Jahr>=2017,60,48) -> 60 | C171: 40 | D171: 40 | E171: =IF(Jahr>=2017,200,120) -> 200 | F171: -12
A172: PK - Pakistan | B172: =IF(Jahr>=2020,34,27) -> 34 | C172: 23 | D172: 23 | E172: =IF(Jahr>=2020,122,68) -> 122 | F172: -6.8
A173: Islamabad | B173: =IF(Jahr>=2020,23,30) -> 23 | C173: =ROUNDUP(B173/3*2,0) -> 16 | D173: 16 | E173: =IF(Jahr>=2020,238,165) -> 238 | F173: -4.6 | G173: Pakistan
A174: Palau | B174: 51 | C174: 34 | D174: 34 | E174: =IF(Jahr>=2019,179,166) -> 179 | F174: -10.2
A175: Panama | B175: =IF(Jahr>=2017,39,34) -> 39 | C175: 26 | D175: 26 | E175: =IF(Jahr>=2017,111,101) -> 111 | F175: -7.8
A176: Papua-Neuguinea | B176: =IF(Jahr>=2017,60,36) -> 60 | C176: 40 | D176: 40 | E176: =IF(Jahr>=2017,234,90) -> 234 | F176: -12
A177: Paraguay | B177: =IF(Jahr>=2018,38,36) -> 38 | C177: 25 | D177: 25 | E177: =IF(Jahr>=2018,108,61) -> 108 | F177: -7.6
A178: Peru | B178: =IF(Jahr>=2020,34,30) -> 34 | C178: 23 | D178: 23 | E178: =IF(Jahr>=2020,143,93) -> 143 | F178: -6.8
A179: Philippinen | B179: =IF(Jahr>=2019,33,30) -> 33 | C179: 22 | D179: 22 | E179: =IF(Jahr>=2019,116,107) -> 116 | F179: -6.6
A180: PL - Polen | B180: =IF(Jahr>=2019,29,27) -> 29 | C180: =ROUNDUP(B180/3*2,0) -> 20 | D180: 20 | E180: =IF(Jahr>=2019,60,50) -> 60 | F180: =B180*-0.2 -> -5.8
A181: Breslau | B181: 33 | C181: 22 | D181: 22 | E181: =IF(Jahr>=2019,117,92) -> 117 | F181: =B181*-0.2 -> -6.6
A182: Danzig | B182: =IF(Jahr>=2019,30,29) -> 30 | C182: =ROUNDUP(B182/3*2,0) -> 20 | D182: 20 | E182: =IF(Jahr>=2019,84,77) -> 84 | F182: =B182*-0.2 -> -6
A183: Krakau | B183: =IF(Jahr>=2019,27,28) -> 27 | C183: 18 | D183: 18 | E183: =IF(Jahr>=2019,86,88) -> 86 | F183: -5.4 | G183: Polen
A184: Warschau | B184: =IF(Jahr>=2019,29,30) -> 29 | C184: =ROUNDUP(B184/3*2,0) -> 20 | D184: 20 | E184: =IF(Jahr>=2019,109,105) -> 109 | F184: -5.8 | G184: Polen
A185: P - Portugal | B185: =IF(Jahr<2015,33,36) -> 36 | C185: 24 | D185: 24 | E185: =IF(Jahr<2015,95,92) -> 92 | F185: =B185*-0.2 -> -7.2
A186: Lissabon | B186: 36 | C186: 24 | D186: 24 | E186: =IF(Jahr<2015,95,92) -> 92 | F186: -7.2 | G186: Portugal
A187: Ruanda | B187: =IF(Jahr<2016,36,46) -> 46 | C187: 31 | D187: 31 | E187: =IF(Jahr<2016,135,141) -> 141 | F187: -9.2
A188: R - Rumänien | B188: =IF(Jahr>=2017,26,27) -> 26 | C188: 17 | D188: 17 | E188: =IF(Jahr>=2017,62,80) -> 62 | F188: =B188*-0.2 -> -5.2
A189: Bukarest | B189: =IF(Jahr>=2017,32,26) -> 32 | C189: 21 | D189: 21 | E189: 100 | F189: -6.4 | G189: Rumänien
A190: RUS - Russ.Föderation | B190: =IF(Jahr>=2017,24,IF(Jahr<2015,36,21)) -> 24 | C190: 16 | D190: 16 | E190: =IF(Jahr>=2017,58,IF(Jahr<2015,80,78)) -> 58 | F190: =B190*-0.2 -> -4.8
A191: Jekatarinenburg | B191: =IF(Jahr>=2017,28,21) -> 28 | C191: =ROUND(B191/3*2,0) -> 19 | D191: =C191 -> 19 | E191: =IF(Jahr>=2017,84,78) -> 84 | F191: =B191*-0.2 -> -5.6 | G191: Russische Föderation
A192: Moskau | B192: =IF(Jahr<2015,33,30) -> 30 | C192: 20 | D192: 20 | E192: 110 | F192: -6 | G192: Russische Föderation
A193: St. Petersburg | B193: =IF(Jahr>=2017,26,IF(Jahr<2015,36,24)) -> 26 | C193: 17 | D193: 17 | E193: =IF(Jahr>=2017,114,IF(Jahr<2015,110,104)) -> 114 | F193: -5.2 | G193: Russische Föderation
A194: Sambia | B194: 36 | C194: 24 | D194: 24 | E194: =IF(Jahr>=2017,130,95) -> 130 | F194: -7.2
A195: Samoa | B195: 29 | C195: =ROUNDUP(B195/3*2,0) -> 20 | D195: 20 | E195: =IF(Jahr>=2017,85,57) -> 85 | F195: -5.8
A196: San Marino | B196: =IF(Jahr>=2017,34,41) -> 34 | C196: =ROUNDUP(B196/3*2,0) -> 23 | D196: =C196 -> 23 | E196: =IF(Jahr>=2017,75,77) -> 75 | F196: =B196*-0.2 -> -6.8
A197: Sao Tomé u. Principe | B197: =IF(Jahr>=2017,47,42) -> 47 | C197: =IF(Jahr>=2017,ROUNDUP(B197/3*2,0),ROUND(B197/3*2,0)) -> 32 | D197: 32 | E197: =IF(Jahr>=2017,80,75) -> 80 | F197: =B197*-0.2 -> -9.4
A198: SA - Saudi-Arabien | B198: =IF(Jahr<2016,47,48) -> 48 | C198: 32 | D198: 32 | E198: 80 | F198: =B198*-0.2 -> -9.6
A199: Djidda | B199: =IF(Jahr<2016,48,38) -> 38 | C199: 25 | D199: 25 | E199: =IF(Jahr<2016,80,234) -> 234 | F199: =B199*-0.2 -> -7.6 | G199: Saudi-Arabien
A200: Riad | B200: 48 | C200: 32 | D200: 32 | E200: =IF(Jahr<2016,95,179) -> 179 | F200: -9.6 | G200: Saudi-Arabien
A201: Schweden | B201: =IF(Jahr<2016,72,50) -> 50 | C201: 33 | D201: 33 | E201: =IF(Jahr<2016,165,168) -> 168 | F201: -10
... 66 more rows

Sheet Fahrzeug
A1: Fahrzeug | B1: km-Satz
A2: Pkw | B2: 0.3
A3: Motorr. | B3: 0.2 | C3: (für Motorrad oder Motorroller)
A4: Krad | B4: 0.2 | C4: (für Motorrad oder Motorroller)
A5: Moped | B5: 0.2
A6: Mofa | B6: 0.2
A7: Fahrrad | B7: 0.05

Sheet Kontenplan
A1: Kontenplan Reisekosten
B2: Arbeitnehmer | C2: Unternehmer
B3: Konto | C3: Konto
A5: Autobahngeb. 0% | B5: 10 6650 | C5: 10 6670
A6: Autobahngeb.19% | B6: 90 6650 | C6: 90 6670
A7: Benzin 0% | B7: 10 6530 | C7: =B7 -> 10 6530
A8: Benzin 19% | B8: 90 6530 | C8: 90 6530
A9: Betriebsbedarf 0% | B9: 10 6850 | C9: 10 6850
A10: Betriebsbedarf 19% | B10: 90 6850 | C10: 90 6850
A11: Bewirtung 0% | B11: 10 6640 | C11: 10 6640
A12: Bürobedarf 0% | B12: 10 6815 | C12: 10 6815
A13: Bürobedarf 19% | B13: 90 6815 | C13: 90 6815
A14: Diesel 0% | B14: 10 6530 | C14: 10 6530
A15: Diesel 19% | B15: 90 6530 | C15: 90 6530
A16: Eintritt Messe 0% | B16: 10 6650 | C16: 10 6670
A17: Eintritt Messe 19% | B17: 90 6650 | C17: 90 6670
A18: Fahrkarte 0% | B18: 10 6650 | C18: 10 6670
A19: Fahrkarte 19% | B19: 90 6663 | C19: 90 6673
A20: Fahrkarte 7% | B20: 80 6663 | C20: 80 6673
A21: Flugticket 0% | B21: 10 6650 | C21: 10 6670
A22: Flugticket 19% | B22: 90 6663 | C22: 90 6673
A23: Garagenmiete 0% | B23: 10 6550 | C23: =B23 -> 10 6550
A24: Garagenmiete 19% | B24: 90 6550 | C24: 90 6550
A25: Geschenk b.35,- 0% | B25: 10 6610 | C25: 10 6610
A26: Geschenk b.35,- 19% | B26: 90 6610 | C26: 90 6610
A27: Kfz-Reparaturen 0% | B27: 10 6540 | C27: 10 6540
A28: Kfz-Reparaturen 19% | B28: 90 6540 | C28: 90 6540
A29: Kleingeräte 0% | B29: 10 6845 | C29: 10 6845
A30: Kleingeräte 19% | B30: 90 6845 | C30: 90 6845
A31: 20% Kürzung Pauschale | B31: 10 6660 | C31: 10 6680
A32: 40% Kürzung Pauschale | B32: 10 6660 | C32: 10 6680
A33: 60% Kürzung Pauschale | B33: 10 6660 | C33: 10 6680
A34: 80% Kürzung Pauschale | B34: 10 6660 | C34: 10 6680
A35: 100% Kürzung Pauschale | B35: 10 6660 | C35: 10 6680
A36: Landkarte 0% | B36: 10 6650 | C36: 10 6670
A37: Landkarte 7% | B37: 80 6650 | C37: 80 6670
A38: lfd. Kfz-Kosten 0% | B38: 10 6530 | C38: =B38 -> 10 6530
A39: lfd. Kfz-Kosten 19% | B39: 90 6530 | C39: =B39 -> 90 6530
A40: Mautgebühren 0% | B40: 10 6650 | C40: 10 6670
A41: Mautgebühren 19% | B41: 90 6650 | C41: 90 6670
A42: Messekatalog 0% | B42: 10 6650 | C42: 10 6670
A43: Messekatalog 19% | B43: 90 6650 | C43: 90 6670
A44: Mietwagen 0% | B44: 10 6595 | C44: =B44 -> 10 6595
A45: Mietwagen 19% | B45: 90 6595 | C45: =B45 -> 90 6595
A46: Parkgebühren 0% | B46: 10 6650 | C46: 10 6670
A47: Parkgebühren 19% | B47: 90 6650 | C47: 90 6670
A48: sonstige Reisek. 0% | B48: 10 6650 | C48: 10 6670
A49: sonstige Reisek. 19% | B49: 90 6650 | C49: 90 6670
A50: Stadtplan 0% | B50: 10 6650 | C50: 10 6670
A51: Stadtplan 7% | B51: 80 6650 | C51: 80 6670
A52: Taxi 0% | B52: 10 6650 | C52: 10 6670
A53: Taxi 19% | B53: 90 6663 | C53: 90 6673
A54: Taxi 7% | B54: 80 6663 | C54: 80 6673
A55: Telefongebühren 0% | B55: 10 6805 | C55: 10 6805
A56: Telefongebühren 19% | B56: 90 6805 | C56: 90 6805
A57: Trinkgeld | B57: 10 6650 | C57: 10 6670
A58: Übernachtung 0% | B58: 10 6660 | C58: 10 6680
A59: Übernachtung 7% | B59: =IF(Jahr>=2010,"80 6660","") -> 80 6660 | C59: =IF(Jahr>=2010,"80 6680","") -> 80 6680
A60: Wagenpflege 0% | B60: 10 6530 | C60: =B60 -> 10 6530
A61: Wagenpflege 19% | B61: 90 6530 | C61: =B61 -> 90 6530
A62: Werkzeuge 0% | B62: 10 6845 | C62: =B62 -> 10 6845
A63: Werkzeuge 19% | B63: 90 6845 | C63: =B63 -> 90 6845
A64: Zuschl.Business-Package | B64: 906650 | C64: 906670
A65: Zuschl.Service-Pauschale | B65: 906650 | C65: 906670
A66: Zuschlag Frühstück | B66: 906664 | C66: bei UN nicht möglich !
A67: Zuschlag Halbpension | B67: 906664 | C67: bei UN nicht möglich !
A68: Zuschlag Vollpension | B68: 906664 | C68: bei UN nicht möglich !

Sheet __Goal_Metadata (hidden)
A1: _KAW999934 | B1: J
A2: _KAW999120 | B2: K0000133
